Cogmind - Beta 10.2 --- EXPLORER MODE // 2021.05.30 @ 13:55:36 // Winter2019/RPGLIKE Player: H_ Result: Destroyed by Combat Programmer with EMDS Performance ------------- Evolutions (7) 3500 Regions Visited (33) 6600 Robots Destroyed (517) 2585 Value Destroyed (26750) 26750 Prototype IDs (251) 5020 Alien Tech Used (1) 200 Bonus (8533) 8533 TOTAL SCORE: 53188 Bonus ------- High Alert Combat Kills 3042 Follower Combat Kills 818 Aligned with FarCom 300 Met Data Miner 300 Used Data Conduit 3000 Met Imprinter 300 Met Zhirov 300 Met Warlord at Base 500 MAIN.C Attacked Warlord 500 Warlord Defense Kill 100 Pursued by Intercept 2000 Friendly Fire -2627 Cogmind --------- Core Integrity 0/600 Matter 270/300 Energy 330/330 System Corruption 0% Temperature Cool (0) Movement Flying (112) Ox1 Location -3/Research Parts ------- > --- POWER (3) -------- Micro Fission Core Mini Fusion Reactor Mini Fusion Reactor > --- PROPULSION (7) --- Experimental Cesium-ion Thruster Experimental Cesium-ion Thruster Experimental Cesium-ion Thruster Experimental Cesium-ion Thruster Experimental Cesium-ion Thruster Experimental Cesium-ion Thruster Q-thruster > --- UTILITY (10) ----- Experimental Target Analyzer Experimental Armor Integrity Analyzer Experimental Phase Shifter System Mapper Deep Network Scanner Experimental System Shield Improved System Restoration Module > --- WEAPON (4) ------- Immobilizer Vortex Rail Experimental Remote Datajack Plasma Lance > --- INVENTORY (7) ---- Advanced Dynamic Insulation System Transdimensional Reconstructor Signal Generator Signal Generator Self-destruct Interrupter (18) Peak State ------------ > --- POWER ------------ Micro Fission Core Mini Fusion Reactor Mini Fusion Reactor > --- PROPULSION ------- Experimental Cesium-ion Thruster Experimental Cesium-ion Thruster Experimental Cesium-ion Thruster Experimental Cesium-ion Thruster Experimental Cesium-ion Thruster Experimental Cesium-ion Thruster Q-thruster > --- UTILITY ---------- Experimental Target Analyzer Experimental Armor Integrity Analyzer Experimental Phase Shifter System Mapper Deep Network Scanner Experimental System Shield Improved System Restoration Module Heart of Steel > --- WEAPON ----------- Immobilizer Vortex Rail Experimental Remote Datajack Plasma Lance > --- INVENTORY -------- Transdimensional Reconstructor Signal Generator Signal Generator Self-destruct Interrupter [Rating: 197] Favorites ----------- Power Mini Fusion Reactor Engine Light Ion Engine Power Core Micro Nuclear Core Reactor Mini Fusion Reactor Propulsion Experimental Cesium-ion Thruster Flight Unit Experimental Cesium-ion Thruster Utility Advanced Melee Analysis Suite Device Improved Maneuvering Thrusters Processor Advanced Melee Analysis Suite Hackware Advanced System Shield Weapon Precision Beam Rifle Energy Gun Precision Beam Rifle Energy Cannon Compact Ion Cannon Ballistic Gun Linked Autogun Launcher Heavy Rocket Launcher Special Weapon Improved Remote Datajack Slashing Weapon Katana Piercing Weapon Lance Special Melee Weapon Improved Datajack Build | -11 -10 -10 -10 -9 -8 -8 -7 -7 -7 -7 -7 -7 -6 -6 -6 -6 -6 -6 -6 -5 -5 -5 -5 -5 -5 -5 -4 -4 -4 -4 -4 -3 -3 ------- Run | Scr Mat Min Exi Min Mat Sto Fac Was Fac Low Low Zio Pro Fac Was Fac Low Low Dat Pro Fac Was Fac Upp Upp War Pro Fac Upp Upp Zhi Pro Res Slots Evolved 20 | . . . 7 . 5 . 1 . 3 . . . . 1 . . . . . 1 . . . . . . . . . . 1 1 . Power 2 | . . . . . 1 . . . . . . . . . . . . . . . . . . . . . . . . . 1 . . Propulsion 6 | . . . 1 . 2 . . . . . . . . 1 . . . . . 1 . . . . . . . . . . . 1 . Utility 9 | . . . 5 . . . 1 . 3 . . . . . . . . . . . . . . . . . . . . . . . . Weapon 3 | . . . 1 . 2 . . . . . . . . . . . . . . . . . . . . . . . . . . . . Parts Attached 287 | 1 4 1 2 4 18 16 21 . 19 2 2 15 2 21 1 5 1 6 5 12 43 5 23 3 . 12 . 11 4 3 4 12 9 Power 22 | . . . . 1 . 2 2 . . . . . 2 . . . 1 . . 2 6 . 2 . . . . . . . . 4 . Engine 1 | . . . . 1 . . . . . . . . . . . . . . . . . . . . . . . . . . . . . Core 15 | . . . . . . 2 2 . . . . . 2 . . . 1 . . 2 4 . 1 . . . . . . . . 1 . Reactor 6 | . . . . . . . . . . . . . . . . . . . . . 2 . 1 . . . . . . . . 3 . Propulsion 46 | . 2 1 . 1 4 4 2 . 7 . . . . 6 1 . . 1 . 2 1 2 1 . . 4 . 2 . . . 4 1 Treads . | . . . . . . . . . . . . . . . . . . . . . . . . . . . . . . . . . . Leg . | . . . . . . . . . . . . . . . . . . . . . . . . . . . . . . . . . . Wheel . | . . . . . . . . . . . . . . . . . . . . . . . . . . . . . . . . . . Hover . | . . . . . . . . . . . . . . . . . . . . . . . . . . . . . . . . . . Flight 46 | . 2 1 . 1 4 4 2 . 7 . . . . 6 1 . . 1 . 2 1 2 1 . . 4 . 2 . . . 4 1 Utility 146 | 1 . . 1 2 5 2 14 . 11 1 1 13 . 12 . 2 . 5 5 5 17 3 13 2 . 6 . 8 4 3 4 . 6 Device 108 | 1 . . 1 1 1 1 9 . 7 . 1 6 . 11 . . . 3 2 5 12 3 12 2 . 6 . 7 4 3 4 . 6 Storage . | . . . . . . . . . . . . . . . . . . . . . . . . . . . . . . . . . . Processor 21 | . . . . 1 2 . 1 . 3 1 . 6 . . . 2 . 2 . . 2 . . . . . . 1 . . . . . Hackware 17 | . . . . . 2 1 4 . 1 . . 1 . 1 . . . . 3 . 3 . 1 . . . . . . . . . . Protection . | . . . . . . . . . . . . . . . . . . . . . . . . . . . . . . . . . . Artifact . | . . . . . . . . . . . . . . . . . . . . . . . . . . . . . . . . . . Weapon 73 | . 2 . 1 . 9 8 3 . 1 1 1 2 . 3 . 3 . . . 3 19 . 7 1 . 2 . 1 . . . 4 2 Energy Gun 27 | . 2 . 1 . 1 6 . . . . 1 . . 1 . . . . . . 4 . 2 1 . 2 . . . . . 4 2 Energy Cannon 2 | . . . . . 1 . . . . . . . . . . 1 . . . . . . . . . . . . . . . . . Ballistic Gun 5 | . . . . . 1 1 . . . . . . . 1 . . . . . . 1 . 1 . . . . . . . . . . Ballistic Cannon . | . . . . . . . . . . . . . . . . . . . . . . . . . . . . . . . . . . Launcher 18 | . . . . . 4 1 1 . . 1 . . . 1 . 1 . . . 3 4 . 2 . . . . . . . . . . Special Weapon 8 | . . . . . . . . . 1 . . . . . . . . . . . 5 . 1 . . . . 1 . . . . . Impact Weapon . | . . . . . . . . . . . . . . . . . . . . . . . . . . . . . . . . . . Slashing Weapon 3 | . . . . . 1 . 1 . . . . . . . . . . . . . 1 . . . . . . . . . . . . Piercing Weapon 9 | . . . . . . . 1 . . . . 2 . . . 1 . . . . 4 . 1 . . . . . . . . . . Special Melee Weapon 1 | . . . . . 1 . . . . . . . . . . . . . . . . . . . . . . . . . . . . Unidentified Prototypes 24 | . . . . . 2 4 . . . . . 7 . . . . . 1 3 . 2 . . . . 2 . 1 . . 1 1 . Parts Lost 3 | . . . . . . . 1 . . . . . . . . . . . . . 1 1 . . . . . . . . . . . Power 1 | . . . . . . . . . . . . . . . . . . . . . . 1 . . . . . . . . . . . Propulsion . | . . . . . . . . . . . . . . . . . . . . . . . . . . . . . . . . . . Utility 2 | . . . . . . . 1 . . . . . . . . . . . . . 1 . . . . . . . . . . . . Weapon . | . . . . . . . . . . . . . . . . . . . . . . . . . . . . . . . . . . Highest Loss Streak 1 | . . . . . . . 1 . . . . . . . . . . . . . 1 1 . . . . . . . . . . . Average Slot Usage (%) 93 | . 38 50 39 44 78 93 95 94 97 100 97 97 100 97 100 99 100 96 86 89 97 87 93 95 95 98 100 98 100 100 98 98 99 Core 5 | . . . . . . 10 11 11 10 10 10 10 10 9 9 9 9 9 9 8 7 . 1 . . . . . . . . 2 4 Reactor 2 | . . . . . . . . . . . . . . . . . . . . . . 5 6 9 9 9 9 9 9 9 8 8 8 Flight 23 | . 14 25 19 15 25 25 23 23 20 20 20 20 20 20 23 23 23 22 23 26 25 22 21 22 22 26 27 26 27 27 26 28 29 Device 17 | . 19 . . 8 12 12 13 17 19 20 17 15 15 20 23 22 19 15 9 10 19 18 17 18 18 18 18 18 22 22 21 20 19 Processor 11 | . . . . 3 14 6 1 5 15 19 20 22 25 13 9 10 19 24 20 13 12 9 9 9 9 9 9 9 9 9 8 8 8 Hackware 13 | . . . . . 2 14 23 17 13 10 10 10 10 14 14 13 9 3 4 13 11 18 18 18 18 18 18 15 13 13 13 12 12 Energy Gun 4 | . 4 25 19 9 3 3 5 5 5 . 2 5 5 4 4 2 . . . . 2 . 2 4 4 7 9 9 9 9 8 8 8 Launcher 5 | . . . . . 5 9 7 5 5 9 10 10 10 9 9 9 9 9 9 7 3 4 3 4 4 4 4 2 . . . . . Special Weapon 2 | . . . . . . . . . 3 5 2 . . . . . . . . . 3 4 4 4 4 1 . 2 4 4 4 4 4 Piercing Weapon 3 | . . . . . . . 1 5 5 5 5 5 5 4 4 4 4 4 4 4 4 4 4 4 4 4 4 4 4 4 4 4 4 Naked Turns . | . . . . . . . . . . . . . . . . . . . . . . . . . . . . . . . . . . Heaviest Build 60 | 1 3 3 3 7 24 34 34 28 32 37 37 39 37 46 46 50 50 49 49 50 51 48 52 46 46 58 51 52 56 54 54 60 53 Greatest Support 68 | 3 4 4 9 14 29 39 39 41 47 44 44 44 44 54 51 55 51 55 55 64 66 66 66 66 66 68 61 59 57 57 57 64 68 Greatest Overweight (x) 2 | . . . . . . . . . . . . . . 1 . . . . . . . . 2 . . . . 2 . . . 1 1 Average Overweight (x) . | . . . . . . . . . . . . . . . . . . . . . . . . . . . . . . . . . . Largest Inventory Capacity 7 | . . . 2 3 4 4 4 4 4 4 4 5 6 6 6 6 6 6 6 6 7 7 7 7 7 7 7 7 7 7 7 7 7 Average Capacity 5 | . . . . 2 3 4 4 4 4 4 4 4 5 6 6 6 6 6 6 6 6 7 7 7 7 7 7 7 7 7 7 7 7 Most Carried 7 | . . . 2 2 4 4 4 2 4 4 4 5 6 6 5 6 6 6 6 6 7 7 7 5 5 7 7 7 7 7 7 7 7 Average Carried 4 | . . . . 1 2 3 3 2 3 3 3 4 5 4 4 5 5 4 5 5 6 6 6 5 5 6 7 6 6 7 6 6 6 Final Capacity 7 | . . . 2 3 4 4 4 4 4 4 4 5 6 6 6 6 6 6 6 6 7 7 7 7 7 7 7 7 7 7 7 7 7 Final Carried 7 | . . . 1 1 2 4 2 2 4 3 4 5 5 4 5 5 5 6 6 5 7 7 5 5 5 7 7 7 7 7 7 7 5 Class Distribution -------------------- 51% | Wizard-Scout 36% | Wizard-Ninja 3% | Hacker-Scout 3% | Hacker-Mutant Dominant Class ---------------- Hacker-Mutant | -10/Materials Hacker-Mutant | -10/Mines Hacker-Mutant | -10/Exiles Hacker-Scout | -9/Mines Hacker-Scout | -8/Materials Wizard-Ninja | -8/Storage Wizard-Ninja | -7/Factory Wizard-Scout | -7/Waste Wizard-Ninja | -7/Factory Wizard-Scout | -7/Lower Caves Wizard-Scout | -7/Lower Caves Wizard-Scout | -7/Zion Wizard-Scout | -6/Proximity Caves Wizard-Ninja | -6/Factory Wizard-Ninja | -6/Waste Wizard-Ninja | -6/Factory Wizard-Ninja | -6/Lower Caves Hacker-Scout | -6/Lower Caves Hacker-Scout | -6/Data Miner Wizard-Scout | -5/Proximity Caves Wizard-Ninja | -5/Factory Wizard-Scout | -5/Waste Wizard-Scout | -5/Factory Wizard-Scout | -5/Upper Caves Wizard-Scout | -5/Upper Caves Wizard-Scout | -5/Warlord Wizard-Scout | -4/Proximity Caves Wizard-Scout | -4/Factory Wizard-Scout | -4/Upper Caves Wizard-Scout | -4/Upper Caves Wizard-Scout | -4/Zhirov Wizard-Scout | -3/Proximity Caves Wizard-Scout | -3/Research Resources | -11 -10 -10 -10 -9 -8 -8 -7 -7 -7 -7 -7 -7 -6 -6 -6 -6 -6 -6 -6 -5 -5 -5 -5 -5 -5 -5 -4 -4 -4 -4 -4 -3 -3 ----------- Run | Scr Mat Min Exi Min Mat Sto Fac Was Fac Low Low Zio Pro Fac Was Fac Low Low Dat Pro Fac Was Fac Upp Upp War Pro Fac Upp Upp Zhi Pro Res Matter Collected 6309 | 179 61 20 . 60 219 150 190 . 240 34 20 17 363 121 89 112 118 1462 28 883 549 323 327 30 28 120 . 214 65 40 . 170 77 Remotely . | . . . . . . . . . . . . . . . . . . . . . . . . . . . . . . . . . . Salvage Created 22716 | . 82 88 . 39 433 733 1190 . 1928 162 263 . 708 322 . 1350 1136 831 28 1135 2348 725 2948 1026 1091 . 818 995 640 604 . 524 569 Parts 1256 | . 8 10 . 10 23 35 77 . 135 9 22 . 31 46 . 76 36 44 4 59 160 9 145 44 33 . 37 66 38 29 . 48 22 Haulers Intercepted 9 | . . . . . 2 4 . . 1 . . . . . . . 1 . . . 1 . . . . . . . . . . . . Recyclers Shooed . | . . . . . . . . . . . . . . . . . . . . . . . . . . . . . . . . . . Parts Field Recycled . | . . . . . . . . . . . . . . . . . . . . . . . . . . . . . . . . . . Retrieved Matter . | . . . . . . . . . . . . . . . . . . . . . . . . . . . . . . . . . . Parts Self-Destructed . | . . . . . . . . . . . . . . . . . . . . . . . . . . . . . . . . . . Prevented . | . . . . . . . . . . . . . . . . . . . . . . . . . . . . . . . . . . Kills | -11 -10 -10 -10 -9 -8 -8 -7 -7 -7 -7 -7 -7 -6 -6 -6 -6 -6 -6 -6 -5 -5 -5 -5 -5 -5 -5 -4 -4 -4 -4 -4 -3 -3 ------- Run | Scr Mat Min Exi Min Mat Sto Fac Was Fac Low Low Zio Pro Fac Was Fac Low Low Dat Pro Fac Was Fac Upp Upp War Pro Fac Upp Upp Zhi Pro Res Combat Hostiles Destroyed 438 | . 3 3 . 2 11 10 26 . 46 8 6 . 13 10 . 25 23 20 . 29 46 4 41 15 18 1 12 17 13 14 . 12 10 Melee 361 | . . . . . 3 10 25 . 37 6 6 . 9 10 . 20 9 13 . 22 41 . 40 15 18 . 12 16 13 14 . 12 10 Guns 15 | . 1 3 . 2 4 . 1 . 2 . . . . . . . . . . . . . . . . 1 . 1 . . . . . Cannons 4 | . . . . . . . . . . . . . . . . . 3 . . . 1 . . . . . . . . . . . . AOE 51 | . 2 . . . 4 . . . 7 2 . . 4 . . 5 9 7 . 3 4 4 . . . . . . . . . . . Classes Destroyed 19 | . 2 1 . 1 4 . 5 . 1 . 1 . . . . . 1 1 . . . 1 . . 1 . . . . . . . . Worker 8 | . . . . . 1 . . . 2 . . . . . . 2 . . . . 2 . . . . . . 1 . . . . . Builder 5 | . . . . . . . . . 1 . . . . . . 1 . . . . 2 . . . . . . 1 . . . . . Tunneler 3 | . . 1 . 2 . . . . . . . . . . . . . . . . . . . . . . . . . . . . . Hauler 9 | . . . . . 2 4 . . 1 . . . . . . . 1 . . . 1 . . . . . . . . . . . . Recycler 3 | . . . . . . . 2 . . . . . . . . . . . . . . . 1 . . . . . . . . . . Minesweeper 2 | . . . . . . . . . . . . . . . . . . . . . . . . . 1 . 1 . . . . . . Operator 4 | . . . . . . . 1 . . . . . . 1 . . . . . . 1 . 1 . . . . . . . . . . Watcher 39 | . . . . . . . 4 . 7 . . . . 5 . 5 . . . . 9 . 7 . . . . 2 . . . . . Swarmer 83 | . 2 2 . . 5 . 4 . 2 8 3 . 3 2 . 7 5 8 . 5 2 . . 5 3 . . 1 1 7 . 4 4 Grunt 140 | . 1 1 . 1 1 7 12 . 22 . . . 2 3 . 11 14 5 . 12 11 . 8 5 6 1 1 2 7 5 . 2 . Brawler 17 | . . . . 1 . 1 1 . 2 . . . 1 . . . . 1 . 3 . . 2 . 2 . 1 . 2 . . . . Duelist 16 | . . . . . . . 1 . 1 . . . . . . . 1 1 . 4 1 . 1 1 2 . 2 . 1 . . . . Sentry 67 | . . . . . 3 2 4 . 12 . . . 1 2 . 3 2 2 . 2 7 . 10 2 2 . 2 3 2 2 . 1 3 Hunter 38 | . . . . . 2 . . . 1 . 2 . 3 . . 2 . . . 2 7 . 7 2 2 . 2 6 . . . . . Programmer 38 | . . . . . . . 4 . 6 . . . 2 3 . 2 . 1 . . 8 . 4 . 1 . 3 . . . . 4 . Behemoth 9 | . . . . . . . . . . . 1 . 1 . . . . 1 . 1 1 . 1 . . . 1 1 . . . 1 . Compactor 4 | . . . . . . . . . . . . . . . . . . . . . . 4 . . . . . . . . . . . Tracker 16 | . . . . . . . . . . . . . . . . . . . . . 6 . 6 . . . . 2 . . . . 2 Combat Programmer 12 | . . . . . . . . . . . . . . . . . . . . . 3 . 6 . . . . 2 . . . . 1 Packrat 1 | . . . . . . . . . . . . . . . . . . . . . . . . . 1 . . . . . . . . Thief 1 | . . . . . . . . . . . . . . . . . 1 . . . . . . . . . . . . . . . . Thug 1 | . . . . . . . . . . . . . . . . . . . . . . . 1 . . . . . . . . . . Mutant 1 | . . . . . . . . . . . . . . . . . . 1 . . . . . . . . . . . . . . . Best Kill Streak 13 | . 2 2 . 2 4 4 5 . 9 3 4 . 4 3 . 13 9 6 1 9 7 4 7 7 12 1 5 4 7 11 . 4 7 Combat Bots Only 12 | . 2 2 . 2 4 4 3 . 9 3 4 . 4 2 . 12 9 6 . 9 6 4 7 7 12 1 5 2 7 11 . 4 7 Max Kills in Single Turn 4 | . 2 1 . 1 3 1 1 . 4 2 1 . 2 1 . 3 3 2 1 3 4 1 1 1 1 1 1 1 1 1 . 1 1 Gunslinging . | . . . . . . . . . . . . . . . . . . . . . . . . . . . . . . . . . . Exploded 3 | . 2 . . . 2 . . . 3 2 . . 2 . . 3 3 2 . 3 2 1 . . . . . . . . . . . Melee 1 | . . . . . 1 1 1 . 1 1 1 . 1 1 . 1 1 1 . 1 1 . 1 1 1 . 1 1 1 1 . 1 1 Uniques/NPCs Destroyed 1 | . . . . . . . . . . . . . . . . . . . 1 . . . . . . . . . . . . . . Data Miner (-6/Data Miner) Combat | -11 -10 -10 -10 -9 -8 -8 -7 -7 -7 -7 -7 -7 -6 -6 -6 -6 -6 -6 -6 -5 -5 -5 -5 -5 -5 -5 -4 -4 -4 -4 -4 -3 -3 -------- Run | Scr Mat Min Exi Min Mat Sto Fac Was Fac Low Low Zio Pro Fac Was Fac Low Low Dat Pro Fac Was Fac Upp Upp War Pro Fac Upp Upp Zhi Pro Res Damage Taken 17172 | . 157 94 . 19 413 427 1027 . 966 145 280 . 590 218 . 867 463 654 91 1114 1996 33 2539 201 262 89 507 1635 508 408 . 446 1023 Core 13755 | . 142 82 . 15 336 340 800 . 760 118 220 . 477 168 . 688 366 528 77 889 1603 26 2034 156 203 72 405 1337 407 316 . 366 824 Absorbed by Shields 32 | . . . . . . 12 . . . . . . . . . . . . . . . . . . . . . 20 . . . . . Redirected to Core 11205 | . 40 36 . 9 253 287 692 . 614 84 196 . 377 146 . 577 298 423 48 741 1317 26 1675 136 196 58 363 1014 344 302 . 279 674 Core Remaining (%) 88 | 100 . . . 100 . 55 . . . . . . 96 . . . . . . 70 . . . . . . 97 . . . . 100 . Volleys Fired 256 | . 2 17 . 14 29 2 7 . 9 1 . . 19 . 2 3 26 5 . 9 32 23 10 1 4 3 . 24 2 . . . 12 Largest 2 | . 1 1 . 1 1 1 1 . 1 1 . . 1 . 1 1 1 1 . 1 1 1 2 1 1 1 . 1 1 . . . 1 Hottest 160 | . 45 45 . 45 80 50 61 . 61 39 . . 61 . 61 43 90 43 . 43 90 43 160 80 40 80 . 80 40 . . . 80 Shots Fired 258 | . 2 17 . 14 29 2 7 . 9 1 . . 19 . 2 3 26 5 . 9 32 23 12 1 4 3 . 24 2 . . . 12 Gun 121 | . 2 17 . 14 18 2 7 . 5 . . . 4 . 2 . . . . . 11 . 10 1 . 3 . 14 . . . . 11 Cannon 22 | . . . . . 8 . . . . . . . . . . . 10 . . . 4 . . . . . . . . . . . . Launcher 85 | . . . . . 3 . . . . 1 . . 15 . . 3 16 5 . 9 4 23 1 . . . . 5 . . . . . Special 30 | . . . . . . . . . 4 . . . . . . . . . . . 13 . 1 . 4 . . 5 2 . . . 1 Kinetic . | . . . . . . . . . . . . . . . . . . . . . . . . . . . . . . . . . . Thermal 44 | . . . . . 8 . 7 . 5 . . . 4 . 2 . 10 . . . 8 . . . . . . . . . . . . Explosive 64 | . . . . . 3 . . . . 1 . . 15 . . 3 3 5 . 1 4 23 1 . . . . 5 . . . . . Electromagnetic 110 | . 2 17 . 14 18 2 . . . . . . . . . . 13 . . 8 11 . 10 1 . 1 . 8 . . . . 5 Entropic 14 | . . . . . . . . . . . . . . . . . . . . . . . . . . 2 . 6 . . . . 6 Robot Hit Streak 37 | . 2 8 . 18 37 . 8 . 17 . . . 11 . 1 1 24 5 . 13 19 29 7 8 1 2 . 15 17 . . . 29 Robot Miss Streak 3 | . . 2 . . 1 . . . . . . . 1 . 1 1 2 . . . 1 2 1 . 2 3 . 1 . . . . . Penetration Max 1 | . . . . . . . . . . . . . . . . . . . . . . . . . . . . 1 . . . . . Secondary Targets . | . . . . . . . . . . . . . . . . . . . . . . . . . . . . . . . . . . Shots Hit Robots 1090 | . 2 12 . 14 38 31 85 . 86 12 18 . 38 28 1 55 40 37 1 45 126 19 127 31 31 2 27 71 24 27 . 21 41 Core Hits 635 | . 3 5 . 5 18 14 38 . 58 9 8 . 23 18 . 35 41 24 1 31 78 6 68 19 20 1 15 36 15 15 . 13 18 Critical Hits 79 | . . . . . . 3 2 . 6 . 1 . 1 1 . 4 . . . 4 10 . 14 1 2 . 2 14 1 5 . 3 5 Critical Kills 44 | . . . . . . 3 2 . 2 . 1 . 1 1 . . . . . 2 5 . 6 1 2 . . 6 . 5 . 2 5 Critical Parts Destroyed 30 | . . . . . . . . . 2 . . . . . . 4 . . . 2 5 . 7 . . . 1 7 1 . . 1 . Melee Attacks 1010 | . . . . . 16 40 92 . 94 13 19 . 24 51 . 62 16 33 1 37 119 . 132 31 30 . 27 55 23 29 . 22 44 Impact . | . . . . . . . . . . . . . . . . . . . . . . . . . . . . . . . . . . Slashing 105 | . . . . . 15 40 50 . . . . . . . . . . . . . . . . . . . . . . . . . . Piercing 904 | . . . . . . . 42 . 94 13 19 . 24 51 . 62 16 33 1 37 119 . 132 31 30 . 27 55 23 29 . 22 44 Sneak Attacks 71 | . . . . . 1 4 6 . 4 . . . . 1 . 3 . 8 1 4 8 . 12 3 4 . 5 2 1 3 . 1 . Combat Hostiles 37 | . . . . . . . 3 . 2 . . . . . . 2 . 3 . 4 3 . 4 3 2 . 4 2 1 3 . 1 . Follow-up Attacks . | . . . . . . . . . . . . . . . . . . . . . . . . . . . . . . . . . . Damage Inflicted 84254 | . 95 188 . 221 1195 1392 4312 . 7572 886 1261 . 3058 1852 17 4214 3498 4145 208 3659 10123 3308 11077 3372 2853 96 2547 4722 1878 2311 . 1843 2351 Guns 1783 | . 28 188 . 221 261 . 119 . 91 . . . 53 . 17 . . . . . 10 . 11 6 . 96 . 406 . . . . 276 Cannons 560 | . . . . . 181 . . . . . . . . . . . 263 . . . 116 . . . . . . . . . . . . Explosions 12921 | . 67 . . . 342 . . . 2297 113 . . 1016 43 . 728 1912 669 . 726 1081 3308 . . . . . 619 . . . . . Melee 68939 | . . . . . 411 1392 4193 . 5184 773 1261 . 1989 1809 . 3486 1323 3476 208 2933 8865 . 11066 3366 2853 . 2547 3697 1878 2311 . 1843 2075 Ramming . | . . . . . . . . . . . . . . . . . . . . . . . . . . . . . . . . . . Kinetic . | . . . . . . . . . . . . . . . . . . . . . . . . . . . . . . . . . . Thermal 3789 | . 67 . . . 296 . 119 . 2388 . . . 53 . 17 . 263 . . . 586 . . . . . . . . . . . . Explosive 8132 | . . . . . 227 . . . . 113 . . 1016 . . 728 565 669 . 225 662 3308 . . . . . 619 . . . . . Electromagnetic 2645 | . 28 188 . 221 261 . . . . . . . . 43 . . 1347 . . 501 10 . 11 6 . 3 . 21 . . . . 5 Impact . | . . . . . . . . . . . . . . . . . . . . . . . . . . . . . . . . . . Slashing 3632 | . . . . . 411 1392 1829 . . . . . . . . . . . . . . . . . . . . . . . . . . Piercing 65307 | . . . . . . . 2364 . 5184 773 1261 . 1989 1809 . 3486 1323 3476 208 2933 8865 . 11066 3366 2853 . 2547 3697 1878 2311 . 1843 2075 Entropic 749 | . . . . . . . . . . . . . . . . . . . . . . . . . . 93 . 385 . . . . 271 Highest Corruption 3 | . . . . . . . . . 2 . . . . . 3 3 . 1 . . 1 . 2 1 . . 1 3 . . . . 2 Average Corruption 1 | . . . . . . . . . 1 . . . . . 3 2 . 1 . . 1 . 1 1 . . 1 1 . . . . 1 Corruption Purged 21 | . . . . . . . . . 3 . . . . . . 4 . 1 . . 2 . 3 1 . . 1 3 1 . . . 2 Effects 15 | . . . . . . . . . 2 . . . . . 1 8 . 1 . . . . 2 . . . . . . . . . 1 Message Errors 3 | . . . . . . . . . . . . . . . . 1 . 1 . . . . . . . . . . . . . . 1 Matter Fused 1 | . . . . . . . . . . . . . . . 1 . . . . . . . . . . . . . . . . . . Heat Flow Errors 2 | . . . . . . . . . . . . . . . . 2 . . . . . . . . . . . . . . . . . Energy Discharges 3 | . . . . . . . . . 1 . . . . . . 2 . . . . . . . . . . . . . . . . . Data Loss (minor) 4 | . . . . . . . . . 1 . . . . . . 1 . . . . . . 2 . . . . . . . . . . Targeting Errors 2 | . . . . . . . . . . . . . . . . 2 . . . . . . . . . . . . . . . . . Overload Shots . | . . . . . . . . . . . . . . . . . . . . . . . . . . . . . . . . . . Overflow Damage 7900 | . . . . . 10 42 502 . 763 107 171 . 307 93 . 349 61 388 . 388 1152 . 972 714 565 . 256 159 253 407 . 76 165 Projectiles 18 | . . . . . 6 . . . . . . . . . . . . . . . 12 . . . . . . . . . . . . Explosions 704 | . . . . . 4 . . . 468 . . . 17 . . 6 21 45 . 2 81 . . . . . . 60 . . . . . Melee 7178 | . . . . . . 42 502 . 295 107 171 . 290 93 . 343 40 343 . 386 1059 . 972 714 565 . 256 99 253 407 . 76 165 Knockbacks . | . . . . . . . . . . . . . . . . . . . . . . . . . . . . . . . . . . Impact . | . . . . . . . . . . . . . . . . . . . . . . . . . . . . . . . . . . Kinetic . | . . . . . . . . . . . . . . . . . . . . . . . . . . . . . . . . . . Secondary . | . . . . . . . . . . . . . . . . . . . . . . . . . . . . . . . . . . Self-Inflicted Damage 200 | . 13 . . . 3 . . . . . . . 39 16 . 42 33 . . . 10 . 44 . . . . . . . . . . Shots 8 | . 1 . . . 1 . . . . . . . 1 1 . 1 1 . . . 1 . 1 . . . . . . . . . . Rammed . | . . . . . . . . . . . . . . . . . . . . . . . . . . . . . . . . . . Targets Rammed . | . . . . . . . . . . . . . . . . . . . . . . . . . . . . . . . . . . Kicked . | . . . . . . . . . . . . . . . . . . . . . . . . . . . . . . . . . . Crushed . | . . . . . . . . . . . . . . . . . . . . . . . . . . . . . . . . . . Highest Temperature 344 | . 8 35 . 4 104 4 6 135 . . . 344 . 5 13 214 16 28 7 10 88 46 115 51 4 162 13 43 9 51 . 21 32 Average Temperature 29 | . 6 18 . 3 57 3 4 72 . . . 172 . 5 13 95 5 14 7 1 20 14 43 29 3 55 8 9 4 19 . 8 9 Received Heat Transfer 4242 | . 72 60 . 18 189 294 612 . 474 . 24 . 105 75 . 264 183 252 18 402 234 . 261 63 45 18 108 57 198 102 . 9 105 Siege Activations . | . . . . . . . . . . . . . . . . . . . . . . . . . . . . . . . . . . Robots Corrupted 6 | . . . . . . . . . . . . . . . . . 2 . . 4 . . . . . . . . . . . . . Combat Hostiles 6 | . . . . . . . . . . . . . . . . . 2 . . 4 . . . . . . . . . . . . . Parts Fried 14 | . . . . 1 1 . . . 2 . . . . . . . 6 . . 4 . . . . . . . . . . . . . Impact Corruptions . | . . . . . . . . . . . . . . . . . . . . . . . . . . . . . . . . . . Robots Melted . | . . . . . . . . . . . . . . . . . . . . . . . . . . . . . . . . . . Combat Hostiles . | . . . . . . . . . . . . . . . . . . . . . . . . . . . . . . . . . . Parts Melted 7 | . . . . . . . 1 . 4 . . . . . . . 1 . . . . . . . . . . . 1 . . . . Heat Transferred 3634 | . 50 . . . 500 . 259 . 1785 . . . 111 . 37 . 333 . . . 559 . . . . . . . . . . . . Parts Sabotaged 4 | . . . . . . . . . . . . . . . . . . . . 4 . . . . . . . . . . . . . Parts Stolen . | . . . . . . . . . . . . . . . . . . . . . . . . . . . . . . . . . . Parts Stripped . | . . . . . . . . . . . . . . . . . . . . . . . . . . . . . . . . . . Power Chain Reactions 18 | . 1 . . . 2 . . . 9 . . . . . . 4 . . . . 1 . 1 . . . . . . . . . . Missiles Intercepted . | . . . . . . . . . . . . . . . . . . . . . . . . . . . . . . . . . . Alert | -11 -10 -10 -10 -9 -8 -8 -7 -7 -7 -7 -7 -7 -6 -6 -6 -6 -6 -6 -6 -5 -5 -5 -5 -5 -5 -5 -4 -4 -4 -4 -4 -3 -3 ------- Run | Scr Mat Min Exi Min Mat Sto Fac Was Fac Low Low Zio Pro Fac Was Fac Low Low Dat Pro Fac Was Fac Upp Upp War Pro Fac Upp Upp Zhi Pro Res Peak Influence 1126 | . 280 182 . 131 777 435 824 173 1126 . . . . 410 84 864 . . . . 896 300 741 . . . . 948 . . . . 501 Initial 163 | . . 77 . . 35 162 27 158 93 . . . . 48 69 45 . . . . 163 104 162 . . . . 136 . . . . 150 Average 294 | . 88 137 . 89 425 241 209 165 480 . . . . 146 72 393 . . . . 303 237 190 . . . . 494 . . . . 254 Maximum Alert Level 4 | . 1 . . . 3 2 3 . 4 . . . . 2 . 3 . . . . 3 1 3 . . . . 3 . . . . 2 Low Security (%) 43 | 100 77 100 . 100 23 41 59 100 13 . . . . 65 100 34 . . . . 34 30 61 . . . . 17 . . . . 26 Level 1 26 | . 22 . . . 10 52 25 . 21 . . . . 34 . 13 . . . . 29 69 27 . . . . 30 . . . . 63 Level 2 24 | . . . . . 59 6 12 . 52 . . . . . . 42 . . . . 32 . 9 . . . . 17 . . . . 10 Level 3 5 | . . . . . 5 . 2 . 11 . . . . . . 9 . . . . 3 . 1 . . . . 35 . . . . . Level 4 . | . . . . . . . . . . . . . . . . . . . . . . . . . . . . . . . . . . Level 5 . | . . . . . . . . . . . . . . . . . . . . . . . . . . . . . . . . . . High Security . | . . . . . . . . . . . . . . . . . . . . . . . . . . . . . . . . . . Max Security . | . . . . . . . . . . . . . . . . . . . . . . . . . . . . . . . . . . Squads Dispatched 137 | . 2 . . . 5 3 20 . 19 . . . . 7 . 17 . . . 1 21 . 27 . . . . 7 . . . . 8 Investigation 75 | . 2 . . . 5 2 13 . 12 . . . . 5 . 15 . . . . 9 . 9 . . . . 1 . . . . 2 Extermination 15 | . . . . . . . 3 . 4 . . . . 1 . . . . . . 2 . 3 . . . . 1 . . . . 1 Reinforcement 10 | . . . . . . 1 . . 3 . . . . 1 . 1 . . . . 2 . 1 . . . . 1 . . . . . Assault 3 | . . . . . . . . . . . . . . . . 1 . . . 1 . . 1 . . . . . . . . . . Garrison 7 | . . . . . . . 4 . . . . . . . . . . . . . . . 2 . . . . 1 . . . . . Intercept 27 | . . . . . . . . . . . . . . . . . . . . . 8 . 11 . . . . 3 . . . . 5 Construction Impeded 4 | . . . . . . . . . 2 . . . . . . . . . . . 1 . . . . . . 1 . . . . . Haulers Reinforced 1 | . . . . . . . . . . . . . . . . . . . . . 1 . . . . . . . . . . . . Stealth | -11 -10 -10 -10 -9 -8 -8 -7 -7 -7 -7 -7 -7 -6 -6 -6 -6 -6 -6 -6 -5 -5 -5 -5 -5 -5 -5 -4 -4 -4 -4 -4 -3 -3 --------- Run | Scr Mat Min Exi Min Mat Sto Fac Was Fac Low Low Zio Pro Fac Was Fac Low Low Dat Pro Fac Was Fac Upp Upp War Pro Fac Upp Upp Zhi Pro Res Distress Signals 14 | . . . . . 3 3 3 . 1 . . . . 1 . 1 . . . . 1 . . . . . . 1 . . . . . Communications Jammed 47 | . . . . . 1 4 . . 1 . . . . 1 . 32 . . . . 8 . . . . . . . . . . . . Distress Signals 46 | . . . . . 1 4 . . . . . . . 1 . 32 . . . . 8 . . . . . . . . . . . . Times Spotted 676 | . 12 4 . 2 21 42 55 6 71 7 6 . 14 32 2 43 27 11 4 25 63 6 76 15 18 7 11 32 13 18 . 12 21 Peak Tracking Total 13 | . 9 2 . 2 6 13 7 6 8 3 3 . 3 5 2 6 9 7 4 11 6 5 9 4 9 5 4 6 7 6 . 4 10 Tactical Retreats 62 | . 3 . . . 2 9 6 . 9 2 . . 2 6 . 3 3 1 . . 3 . 2 1 1 . . 6 . 1 . . 2 Traps | -11 -10 -10 -10 -9 -8 -8 -7 -7 -7 -7 -7 -7 -6 -6 -6 -6 -6 -6 -6 -5 -5 -5 -5 -5 -5 -5 -4 -4 -4 -4 -4 -3 -3 ------- Run | Scr Mat Min Exi Min Mat Sto Fac Was Fac Low Low Zio Pro Fac Was Fac Low Low Dat Pro Fac Was Fac Upp Upp War Pro Fac Upp Upp Zhi Pro Res Traps Triggered 20 | . . . . . . 1 1 . 2 . . . . 3 . 1 . . . . 4 . 5 . . . . 3 . . . . . Indirectly . | . . . . . . . . . . . . . . . . . . . . . . . . . . . . . . . . . . Trap Hack Attempts . | . . . . . . . . . . . . . . . . . . . . . . . . . . . . . . . . . . Triggered . | . . . . . . . . . . . . . . . . . . . . . . . . . . . . . . . . . . Disarmed 20 | . . . . . . . . . . . . . . 1 . . . . . . 12 . 1 . . . . 6 . . . . . Reprogrammed 175 | . 10 . . . 12 10 33 . 24 . . . . 36 . 10 . . . . 11 . 21 . . . . . . . . . 8 Reused 48 | . 2 . . . 10 4 3 . 9 . . . . 5 . 1 . . . . 2 . 9 . . . . . . . . . 3 Traps Extracted . | . . . . . . . . . . . . . . . . . . . . . . . . . . . . . . . . . . Installed 6 | . . . . . . . . . . . . . . . . . . . . . . . . . . 3 . . 3 . . . . Triggered 62 | . 2 . . . 10 4 3 . 9 . . . . 5 . 1 1 5 . 2 2 . 9 . . 6 . . . . . . 3 Machines | -11 -10 -10 -10 -9 -8 -8 -7 -7 -7 -7 -7 -7 -6 -6 -6 -6 -6 -6 -6 -5 -5 -5 -5 -5 -5 -5 -4 -4 -4 -4 -4 -3 -3 ---------- Run | Scr Mat Min Exi Min Mat Sto Fac Was Fac Low Low Zio Pro Fac Was Fac Low Low Dat Pro Fac Was Fac Upp Upp War Pro Fac Upp Upp Zhi Pro Res Machines Disabled 49 | . . . . . 1 5 . . 17 . . . . 1 . 8 1 1 . . 6 . 2 1 . 1 . 4 . 1 . . . Max in Single Turn 7 | . . . . . 1 1 . . 7 . . . . 1 . 6 1 1 . . 3 . . 1 . 1 . . . 1 . . . Garrison Access 17 | . . . . . 1 . . . 2 . . . . 2 . 3 . . . . 3 . 3 . . . . 1 . . . . 2 Machines Sabotaged . | . . . . . . . . . . . . . . . . . . . . . . . . . . . . . . . . . . Garrisons Compromised 1 | . . . . . . . 1 . . . . . . . . . . . . . . . . . . . . . . . . . . Overloaded Fab Kills 15 | . . . . . . . . . 5 . . . . 2 . 5 . . . . . . 3 . . . . . . . . . . Fab Network Shutdowns 5 | . . . . . . . 1 . 1 . . . . . . . . . . . 1 . 1 . . . . 1 . . . . . Hacking | -11 -10 -10 -10 -9 -8 -8 -7 -7 -7 -7 -7 -7 -6 -6 -6 -6 -6 -6 -6 -5 -5 -5 -5 -5 -5 -5 -4 -4 -4 -4 -4 -3 -3 --------- Run | Scr Mat Min Exi Min Mat Sto Fac Was Fac Low Low Zio Pro Fac Was Fac Low Low Dat Pro Fac Was Fac Upp Upp War Pro Fac Upp Upp Zhi Pro Res Machines Accessed 308 | . 8 . 1 . 16 11 35 . 36 1 . . . 38 . 31 . 1 4 . 37 . 35 . 1 8 . 13 3 . 9 . 20 Terminals 149 | . 6 . . . 11 8 19 . 17 . . . . 19 . 15 . . . . 21 . 17 . . . . 8 . . . . 8 Fabricators 31 | . . . . . . . 4 . 6 . . . . 4 . 5 . . . . 4 . 5 . . . . 1 . . . . 2 Repair Stations 6 | . . . . . . . . . 1 . . . . 2 . . . . . . . . . . . . . 1 . . . . 2 Recycling Units 41 | . 2 . . . 2 2 6 . 5 . . . . 6 . 5 . . . . 5 . 6 . . . . 1 . . . . 1 Scanalyzers 31 | . . . . . 2 . 4 . 4 . . . . 4 . 3 . . . . 4 . 4 . . . . 1 . . . . 5 Garrison Access 22 | . . . . . 1 1 2 . 3 . . . . 3 . 3 . . . . 3 . 3 . . . . 1 . . . . 2 Total Hacks 1680 | . 24 . 1 . 93 79 286 . 186 1 . . . 206 . 115 . 1 26 . 146 . 286 . 1 19 . 88 8 . 42 . 72 Successful 1496 | . 20 . 1 . 73 70 255 . 156 1 . . . 171 . 97 . 1 26 . 136 . 267 . 1 19 . 81 8 . 42 . 71 Failed 184 | . 4 . . . 20 9 31 . 30 . . . . 35 . 18 . . . . 10 . 19 . . . . 7 . . . . 1 Catastrophic 8 | . 1 . . . . . . . 1 . . . . . . 2 . . . . 3 . 1 . . . . . . . . . . Database Lockouts . | . . . . . . . . . . . . . . . . . . . . . . . . . . . . . . . . . . Manual 945 | . 18 . 1 . 66 57 178 . 112 . . 3 . 118 . 57 . . . . 82 . 165 1 . 1 . 39 . . . . 47 Terminals 1170 | . 18 . . . 75 71 225 . 123 . . . . 158 . 80 . . . . 104 . 205 . . . . 61 . . . . 50 Fabricators 145 | . . . . . . . 19 . 26 . . . . 12 . 16 . . . . 22 . 38 . . . . 9 . . . . 3 Repair Stations 6 | . . . . . . . . . 1 . . . . 2 . . . . . . . . . . . . . 1 . . . . 2 Recycling Units 117 | . 6 . . . 8 4 17 . 20 . . . . 14 . 13 . . . . 10 . 19 . . . . 3 . . . . 3 Scanalyzers 68 | . . . . . 6 . 13 . 4 . . . . 12 . 3 . . . . 7 . 7 . . . . 8 . . . . 8 Garrison Access 75 | . . . . . 4 4 12 . 12 . . . . 8 . 3 . . . . 3 . 17 . . . . 6 . . . . 6 Terminal Hacks 839 | . 7 . 1 . 46 46 159 . 64 1 . . . 94 . 46 . 1 26 . 66 . 147 . 1 19 . 39 8 . 42 . 26 Record 100 | . . . . . . . 6 . . . . . . . . 1 . . 11 . . . 21 . . 17 . . 6 . 36 . 2 Part Schematic 172 | . . . . . . 3 59 . 5 . . . . 18 . 10 . . 5 . 19 . 32 . . . . 10 . . 2 . 9 Robot Schematic 20 | . . . . . . . 2 . 1 . . . . 3 . 1 . . 7 . 3 . . . . . . 2 . . . . 1 Robot Analysis 44 | . . . . . 19 6 3 . 6 . . . . 10 . . . . . . . . . . . . . . . . . . . Prototype ID Bank 135 | . . . . . 2 8 34 . 5 . . . . 25 . 7 . . 3 . 9 . 34 . . . . 2 . . 4 . 2 Open Door 10 | . . . . . . 2 . . . 1 . . . . . . . 1 . . 1 . . . 1 2 . . 2 . . . . Level Access Points 8 | . . . . . 1 1 1 . 1 . . . . 1 . 1 . . . . . . 1 . . . . . . . . . 1 Branch Access Points 14 | . . . . . 2 1 2 . 1 . . . . 1 . 2 . . . . 1 . 2 . . . . 1 . . . . 1 Emergency Access Points 16 | . . . . . 1 . 5 . 2 . . . . 3 . 1 . . . . 1 . 3 . . . . . . . . . . Machine Index 6 | . . . . . 1 1 1 . 1 . . . . 1 . 1 . . . . . . . . . . . . . . . . . Terminal Index 7 | . 1 . . . 1 1 1 . 1 . . . . 1 . 1 . . . . . . . . . . . . . . . . . Fabricator Index 2 | . . . . . . . . . 1 . . . . . . 1 . . . . . . . . . . . . . . . . . Repair Station Index 1 | . . . . . . . . . 1 . . . . . . . . . . . . . . . . . . . . . . . . Recycling Unit Index 5 | . 1 . . . 1 . 1 . 1 . . . . 1 . . . . . . . . . . . . . . . . . . . Scanalyzer Index 1 | . . . . . . . . . 1 . . . . . . . . . . . . . . . . . . . . . . . . Garrison Index 3 | . . . . . 1 . 1 . 1 . . . . . . . . . . . . . . . . . . . . . . . . Alert Level 9 | . . . . . . . 1 . . . . . . . . 1 . . . . 1 . 2 . . . . 3 . . . . 1 Unreport Threat 55 | . . . . . . 5 4 . 8 . . . . 5 . 4 . . . . 10 . 12 . . . . 6 . . . . 1 Locate Traps 42 | . 2 . . . 5 3 6 . 3 . . . . 4 . 4 . . . . 4 . 8 . . . . 3 . . . . . Disarm Traps 7 | . . . . . . . . . . . . . . 1 . . . . . . 2 . 2 . . . . 2 . . . . . Reprogram Traps 61 | . 2 . . . 4 9 11 . 8 . . . . 9 . 2 . . . . 4 . 8 . . . . . . . . . 4 Dispatch Records 8 | . . . . . . . 1 . . . . . . 1 . . . . . . 3 . 3 . . . . . . . . . . Security Status 1 | . . . . . . . . . . . . . . . . . . . . . . . 1 . . . . . . . . . . Transport Status 2 | . . . . . 1 . . . . . . . . . . . . . . . . . 1 . . . . . . . . . . Assault Status 1 | . . . . . . . 1 . . . . . . . . . . . . . . . . . . . . . . . . . . Recall Investigation 10 | . . . . . 1 . 1 . 4 . . . . . . . . . . . . . 3 . . . . 1 . . . . . Recall Extermination 2 | . . . . . . . 1 . . . . . . . . . . . . . . . 1 . . . . . . . . . . Recall Reinforcements 8 | . . . . . . . 1 . 3 . . . . . . . . . . . 2 . 1 . . . . 1 . . . . . Recall Assault 6 | . . . . . . . 2 . 1 . . . . . . . . . . . . . 2 . . . . 1 . . . . . Hauler Manifests 5 | . . . . . . . 2 . . . . . . . . . . . . . 1 . 2 . . . . . . . . . . Registered Components 6 | . . . . . . 1 1 . 1 . . . . 1 . 1 . . . . . . . . . . . 1 . . . . . Registered Prototypes 7 | . . . . . . 1 1 . 1 . . . . 1 . . . . . . 1 . 1 . . . . . . . . . 1 Zone Layout 64 | . 1 . . . 6 4 10 . 7 . . . . 8 . 8 . . . . 4 . 7 . . . . 6 . . . . 3 EX-Prototype ID Bank 1 | . . . 1 . . . . . . . . . . . . . . . . . . . . . . . . . . . . . . Fabricator Hacks 74 | . . . . . . . 11 . 10 . . . . 5 . 6 . . . . 15 . 23 . . . . 4 . . . . . Network Status 18 | . . . . . . . 1 . 3 . . . . . . 1 . . . . 2 . 10 . . . . 1 . . . . . Load Schematic 22 | . . . . . . . 4 . 2 . . . . 1 . 2 . . . . 5 . 7 . . . . 1 . . . . . Build 34 | . . . . . . . 6 . 5 . . . . 4 . 3 . . . . 8 . 6 . . . . 2 . . . . . Repair Station Hacks . | . . . . . . . . . . . . . . . . . . . . . . . . . . . . . . . . . . Recycling Unit Hacks 70 | . 2 . . . 4 2 9 . 13 . . . . 7 . 6 . . . . 8 . 17 . . . . 1 . . . . 1 Process 10 | . . . . . . . . . 3 . . . . . . . . . . . . . 7 . . . . . . . . . . Report Inventory 50 | . 1 . . . 2 2 7 . 9 . . . . 6 . 6 . . . . 5 . 10 . . . . 1 . . . . 1 Retrieve Components 10 | . 1 . . . 2 . 2 . 1 . . . . 1 . . . . . . 3 . . . . . . . . . . . . Scanalyzer 39 | . . . . . 4 . 10 . . . . . . 9 . . . . . . 3 . 3 . . . . 7 . . . . 3 Insert Component 19 | . . . . . 2 . 5 . . . . . . 4 . . . . . . 1 . 2 . . . . 3 . . . . 2 Analyze 20 | . . . . . 2 . 5 . . . . . . 5 . . . . . . 2 . 1 . . . . 4 . . . . 1 Garrison Access Hacks 16 | . . . . . 1 . . . 2 . . . . 2 . 3 . . . . 3 . 2 . . . . 1 . . . . 2 Seal Access 16 | . . . . . 1 . . . 2 . . . . 2 . 3 . . . . 3 . 2 . . . . 1 . . . . 2 Unauthorized Hacks 458 | . 11 . . . 18 22 66 . 67 . . . . 54 . 36 . . . . 41 . 75 . . . . 29 . . . . 39 Terminals 253 | . 7 . . . 12 16 35 . 30 . . . . 32 . 16 . . . . 28 . 39 . . . . 15 . . . . 23 Track 41 | . . . . . . 3 6 . 4 . . . . 6 . 2 . . . . 2 . 8 . . . . 3 . . . . 7 Assimilate 43 | . . . . . 2 2 7 . 5 . . . . 4 . 3 . . . . 6 . 10 . . . . 2 . . . . 2 Botnet 117 | . 6 . . . 9 6 14 . 14 . . . . 16 . 8 . . . . 17 . 15 . . . . 5 . . . . 7 Detonate 10 | . . . . . . . 1 . 3 . . . . 1 . 2 . . . . 1 . . . . . . 2 . . . . . Disrupt 20 | . 1 . . . . 4 5 . . . . . . 2 . . . . . . . . 3 . . . . 1 . . . . 4 Operators 22 | . . . . . 1 1 2 . 4 . . . . 3 . 1 . . . . 2 . 3 . . . . 2 . . . . 3 Fabricators 71 | . . . . . . . 8 . 16 . . . . 7 . 10 . . . . 7 . 15 . . . . 5 . . . . 3 Report 17 | . . . . . . . 2 . 4 . . . . 2 . 2 . . . . 1 . 4 . . . . 1 . . . . 1 Prioritize 11 | . . . . . . . 2 . 2 . . . . 1 . 1 . . . . 1 . 3 . . . . 1 . . . . . Siphon 11 | . . . . . . . 2 . 2 . . . . 1 . 1 . . . . 1 . 3 . . . . 1 . . . . . Haulers 17 | . . . . . . . 2 . 4 . . . . 2 . 2 . . . . 1 . 3 . . . . 1 . . . . 2 Overload 15 | . . . . . . . . . 4 . . . . 1 . 4 . . . . 3 . 2 . . . . 1 . . . . . Repair Stations 6 | . . . . . . . . . 1 . . . . 2 . . . . . . . . . . . . . 1 . . . . 2 Mechanics 6 | . . . . . . . . . 1 . . . . 2 . . . . . . . . . . . . . 1 . . . . 2 Recycling Units 45 | . 4 . . . 2 2 8 . 7 . . . . 7 . 7 . . . . 2 . 2 . . . . 2 . . . . 2 Monitor 12 | . 1 . . . . . 1 . 2 . . . . 3 . 1 . . . . 1 . 1 . . . . 1 . . . . 1 Recyclers 12 | . 1 . . . . . 1 . 2 . . . . 3 . 1 . . . . 1 . 1 . . . . 1 . . . . 1 Tunnel 21 | . 2 . . . 2 2 6 . 3 . . . . 1 . 5 . . . . . . . . . . . . . . . . . Scanalyzers 28 | . . . . . 2 . 3 . 4 . . . . 2 . 3 . . . . 4 . 4 . . . . 1 . . . . 5 Researchers 4 | . . . . . . . . . . . . . . . . . . . . . . . . . . . . 1 . . . . 3 Extract 24 | . . . . . 2 . 3 . 4 . . . . 2 . 3 . . . . 4 . 4 . . . . . . . . . 2 Garrison Access 55 | . . . . . 2 4 12 . 9 . . . . 4 . . . . . . . . 15 . . . . 5 . . . . 4 Broadcast 12 | . . . . . 1 1 2 . 2 . . . . 1 . . . . . . . . 3 . . . . 1 . . . . 1 Decoy 2 | . . . . . . . 1 . . . . . . . . . . . . . . . 1 . . . . . . . . . . Redirect 2 | . . . . . . . 1 . . . . . . . . . . . . . . . 1 . . . . . . . . . . Reprogram 17 | . . . . . . 1 4 . 4 . . . . 1 . . . . . . . . 4 . . . . 2 . . . . 1 Intercept 10 | . . . . . . 1 2 . 1 . . . . 1 . . . . . . . . 3 . . . . 1 . . . . 1 Watchers 12 | . . . . . 1 1 2 . 2 . . . . 1 . . . . . . . . 3 . . . . 1 . . . . 1 Data Cores Recovered 1 | . . . . . . . 1 . . . . . . . . . . . . . . . . . . . . . . . . . . Used . | . . . . . . . . . . . . . . . . . . . . . . . . . . . . . . . . . . Hacking Detections 169 | . 7 . . . 14 6 21 . 22 . . . . 20 . 13 . . . . 23 . 22 . . . . 9 . . . . 12 Full Trace Events 10 | . . . . . 1 . 2 . 1 . . . . 1 . 2 . . . . 2 . 1 . . . . . . . . . . Feedback Events 2 | . . . . . . . 1 . . . . . . . . . . . . . 1 . . . . . . . . . . . . Hackware Fried 2 | . . . . . . . 1 . . . . . . . . . . . . . 1 . . . . . . . . . . . . Feedback Blocked . | . . . . . . . . . . . . . . . . . . . . . . . . . . . . . . . . . . Robot Schematics Acquired 20 | . . . . . . . 2 . 1 . . . . 3 . 1 . . 7 . 3 . . . . . . 2 . . . . 1 Robots Built 1 | . . . . . . . . . . . . . . . . . . . . . 1 . . . . . . . . . . . . Matter 114 | . . . . . . . . . . . . . . . . . . . . . 114 . . . . . . . . . . . . Time 20 | . . . . . . . . . . . . . . . . . . . . . 20 . . . . . . . . . . . . Total Robot Build Rating 1 | . . . . . . . . . . . . . . . . . . . . . 1 . . . . . . . . . . . . Part Schematics Acquired 265 | . . . . . 11 3 70 . 16 . . . . 28 . 19 . . 5 . 36 . 45 . . . . 13 . . 2 . 17 Parts Built 30 | . . . . . . . 6 . 2 . . . . 4 . 3 . . . . 7 . 6 . . . . 2 . . . . . Matter 5787 | . . . . . . . 855 . 498 . . . . 952 . 459 . . . . 1195 . 1352 . . . . 476 . . . . . Time 995 | . . . . . . . 144 . 114 . . . . 168 . 49 . . . . 202 . 234 . . . . 84 . . . . . Total Part Build Rating 181 | . . . . . . . 32 . 10 . . . . 24 . 17 . . . . 46 . 40 . . . . 12 . . . . . Parts Repaired . | . . . . . . . . . . . . . . . . . . . . . . . . . . . . . . . . . . Time . | . . . . . . . . . . . . . . . . . . . . . . . . . . . . . . . . . . Parts Recycled . | . . . . . . . . . . . . . . . . . . . . . . . . . . . . . . . . . . Recycled Matter 4360 | . . . . . . . . . 791 . . . . . . . . . . . . . 3569 . . . . . . . . . . Retrieved Matter . | . . . . . . . . . . . . . . . . . . . . . . . . . . . . . . . . . . Retrieved Components 24 | . . . . . 12 . 5 . 2 . . . . 2 . . . . . . 3 . . . . . . . . . . . . Parts Scanalyzed 17 | . . . . . 2 . 5 . . . . . . 4 . . . . . . 1 . 1 . . . . 3 . . . . 1 Part Schematics Acquired 17 | . . . . . 2 . 5 . . . . . . 4 . . . . . . 1 . 1 . . . . 3 . . . . 1 Parts Damaged 3 | . . . . . . . . . . . . . . . . . . . . . . . 1 . . . . 2 . . . . . Bothacking | -11 -10 -10 -10 -9 -8 -8 -7 -7 -7 -7 -7 -7 -6 -6 -6 -6 -6 -6 -6 -5 -5 -5 -5 -5 -5 -5 -4 -4 -4 -4 -4 -3 -3 ------------ Run | Scr Mat Min Exi Min Mat Sto Fac Was Fac Low Low Zio Pro Fac Was Fac Low Low Dat Pro Fac Was Fac Upp Upp War Pro Fac Upp Upp Zhi Pro Res Used RIF Installer . | . . . . . . . . . . . . . . . . . . . . . . . . . . . . . . . . . . Robots Hacked 6 | . . . . . 1 . . . 2 . . . . . . . . . . . 1 . . . . . . 2 . . . . . Non-combat 6 | . . . . . 1 . . . 2 . . . . . . . . . . . 1 . . . . . . 2 . . . . . Combat . | . . . . . . . . . . . . . . . . . . . . . . . . . . . . . . . . . . Robot Hacks Applied 6 | . . . . . 1 . . . 2 . . . . . . . . . . . 1 . . . . . . 2 . . . . . parse_system 2 | . . . . . 1 . . . 1 . . . . . . . . . . . . . . . . . . . . . . . . no_distress 1 | . . . . . . . . . 1 . . . . . . . . . . . . . . . . . . . . . . . . find_chute 3 | . . . . . . . . . . . . . . . . . . . . . 1 . . . . . . 2 . . . . . Relay Couplers Released 3 | . . . . . . . . . 1 . . . . 1 . . . . . . . . 1 . . . . . . . . . . Machine Destruction 1 | . . . . . . . . . . . . . . . . . . . . . . . 1 . . . . . . . . . . Programmers 2 | . . . . . . . . . 1 . . . . 1 . . . . . . . . . . . . . . . . . . . Robots Rewired 7 | . . . . . . . . . . . . . . . . . . . . . 3 . . . 2 . . . 2 . . . . Allies Hacked 2 | . . . . . . . . . . . . . . . . . . . . . . . 1 . . . . . . . . . 1 Hacks Repelled . | . . . . . . . . . . . . . . . . . . . . . . . . . . . . . . . . . . Allies | -11 -10 -10 -10 -9 -8 -8 -7 -7 -7 -7 -7 -7 -6 -6 -6 -6 -6 -6 -6 -5 -5 -5 -5 -5 -5 -5 -4 -4 -4 -4 -4 -3 -3 -------- Run | Scr Mat Min Exi Min Mat Sto Fac Was Fac Low Low Zio Pro Fac Was Fac Low Low Dat Pro Fac Was Fac Upp Upp War Pro Fac Upp Upp Zhi Pro Res Total Allies 88 | . . 1 . 2 2 2 14 . 8 . . . . 2 . 2 . . . . 8 18 16 . 2 . . 5 4 . . . 2 Largest Group 18 | . . 1 1 2 2 2 10 . 3 . . . . 1 . 1 . . . . 3 18 18 2 2 . . 3 4 2 . . 1 Highest-Rated Group 668 | . . 31 31 43 41 20 182 . 48 . . . . 26 . 26 . . . . 62 668 668 36 78 . . 122 153 78 . . 99 Highest-Rated Ally 99 | . . 31 31 31 31 10 32 . 26 . . . . 26 . 26 . . . . 29 50 50 26 49 . . 56 48 48 . . 99 Total Orders 47 | . . . . . . 2 9 . . . . 2 . . . . . . . . 7 . 9 2 . 7 . . 3 4 2 . . STAY 15 | . . . . . . 1 4 . . . . . . . . . . . . . 4 . 5 1 . . . . . . . . . FOLLOW 11 | . . . . . . . 3 . . . . . . . . . . . . . 3 . 4 1 . . . . . . . . . EXPLORE 14 | . . . . . . 1 1 . . . . . . . . . . . . . . . . . . 6 . . 2 3 1 . . RETURN 7 | . . . . . . . 1 . . . . 2 . . . . . . . . . . . . . 1 . . 1 1 1 . . Ally Attacks 304 | . . 1 . 8 4 . 67 . 4 . . . . . . . . . . . 5 44 139 . 9 . . 7 4 10 . . 2 Total Damage 7220 | . . 20 . 83 86 . 801 . 120 . . . . . . . . . . . 56 1268 3808 . 180 . . 249 63 276 . . 210 Kills 59 | . . 1 . 4 2 . 6 . 2 . . . . . . . . . . . . 2 30 . 3 . . 4 . 4 . . 1 Allies Corrupted 11 | . . . . . . . . . 2 . . . . . . . . . . . . . 4 . . 4 . 1 . . . . . Allies Melted . | . . . . . . . . . . . . . . . . . . . . . . . . . . . . . . . . . . Intel | -11 -10 -10 -10 -9 -8 -8 -7 -7 -7 -7 -7 -7 -6 -6 -6 -6 -6 -6 -6 -5 -5 -5 -5 -5 -5 -5 -4 -4 -4 -4 -4 -3 -3 ------- Run | Scr Mat Min Exi Min Mat Sto Fac Was Fac Low Low Zio Pro Fac Was Fac Low Low Dat Pro Fac Was Fac Upp Upp War Pro Fac Upp Upp Zhi Pro Res Robot Analysis Total 159 | . . . . . 19 6 3 . 6 . . . . 10 . . . . 115 . . . . . . . . . . . . . . Derelict Logs Recovered 16 | . . . . . . . . . . 1 1 1 1 . . . 1 3 . 1 . . . 2 2 . 1 . 1 1 . . . Drone Launches 149 | . . . . . . 14 . . . . . 2 . . . . . . . . . 1 . . . 90 . . 19 21 2 . . Drone Recoveries 51 | . . . . . . . . . . . . 2 . . . . . . . . . . . . . 10 . . 16 21 2 . . Decoded 0b10 Intel 4 | . . . . . . . . . . . . . . 4 . . . . . . . . . . . . . . . . . . . Traps 1 | . . . . . . . . . . . . . . 1 . . . . . . . . . . . . . . . . . . . Emergency Access 2 | . . . . . . . . . . . . . . 2 . . . . . . . . . . . . . . . . . . . Items 1 | . . . . . . . . . . . . . . 1 . . . . . . . . . . . . . . . . . . . Exploration | -11 -10 -10 -10 -9 -8 -8 -7 -7 -7 -7 -7 -7 -6 -6 -6 -6 -6 -6 -6 -5 -5 -5 -5 -5 -5 -5 -4 -4 -4 -4 -4 -3 -3 ------------- Run | Scr Mat Min Exi Min Mat Sto Fac Was Fac Low Low Zio Pro Fac Was Fac Low Low Dat Pro Fac Was Fac Upp Upp War Pro Fac Upp Upp Zhi Pro Res Turns Passed 20653 | 12 169 343 177 303 546 409 1682 21 2689 384 425 512 535 1138 22 797 314 533 29 450 2190 143 2380 449 286 471 257 494 804 860 49 334 446 Spaces Moved 49736 | 20 359 615 432 667 984 713 3368 97 6064 1190 1332 1427 1518 2625 99 2631 1111 1753 107 1247 5361 238 5763 1278 1200 1342 1159 1142 698 783 236 790 1387 Core 177 | 20 139 . . . . . . . . . . . . . . . . . . . . . 9 . . . . 9 . . . . . Treads . | . . . . . . . . . . . . . . . . . . . . . . . . . . . . . . . . . . Legs . | . . . . . . . . . . . . . . . . . . . . . . . . . . . . . . . . . . Wheels . | . . . . . . . . . . . . . . . . . . . . . . . . . . . . . . . . . . Hover . | . . . . . . . . . . . . . . . . . . . . . . . . . . . . . . . . . . Flight 49559 | . 220 615 432 667 984 713 3368 97 6064 1190 1332 1427 1518 2625 99 2631 1111 1753 107 1247 5361 238 5754 1278 1200 1342 1159 1133 698 783 236 790 1387 Fastest Speed 10 | 50 40 40 40 37 31 26 26 20 26 26 26 26 26 15 15 13 15 13 13 12 14 16 16 16 16 11 11 10 10 10 10 10 10 Average Speed 20 | 50 43 40 40 37 32 26 26 21 26 26 26 26 26 25 15 14 15 14 14 14 15 16 16 16 16 12 13 12 10 10 10 10 10 Slowest Speed 150 | 50 50 40 40 40 37 31 26 26 29 26 26 26 26 98 15 15 15 17 15 15 22 16 150 16 16 17 14 150 10 10 10 100 112 Overloaded Moves 247 | . . . . . . . . 79 . . . . . 15 . 13 . 103 11 9 17 . . . . . . . . . . . . Propulsion Burnouts . | . . . . . . . . . . . . . . . . . . . . . . . . . . . . . . . . . . Robots Hopped 200 | . 3 8 . 4 15 15 32 . 36 . . . . 9 . 5 1 3 . 1 25 . 20 . . 2 . 16 . . . . 5 Cave-ins Triggered . | . . . . . . . . . . . . . . . . . . . . . . . . . . . . . . . . . . Exploration Rate (%) 81 | 3 70 99 89 97 66 91 77 81 93 97 99 88 98 66 82 65 99 96 80 99 84 90 72 98 97 97 99 26 97 98 62 91 38 Regions Visited 33 Branch Regions 20 Pre-discovered Areas 41 | . 2 . . . 2 2 6 . 3 . . 5 1 1 . 5 1 . 7 . . . . 2 . . . . 1 . 3 . . Known Exits Taken 27 | 1 1 1 1 1 1 1 . . 1 1 1 1 1 . . 1 1 1 1 1 . . 1 1 1 1 1 1 1 1 1 1 . Unknown Exits Taken . | . . . . . . . . . . . . . . . . . . . . . . . . . . . . . . . . . . Scrap Searched 45 | . . . . . . . . . . 3 3 4 3 . . . 3 8 . 3 . . . 1 3 . 3 . 4 3 . 4 . Spaces Dug 149 | . . . . . 3 4 14 . 16 . 1 . 15 22 . 6 . . . . 21 . 25 . . . . 6 1 . . . 15 Terrain Destroyed 1041 | . 2 . . . 61 4 14 . 254 10 1 . 55 22 . 83 43 50 . 17 147 186 25 . . 6 . 39 1 . . . 21 Melee 124 | . . . . . 3 4 14 . 16 . 1 . 1 22 . 6 . . . . 21 . 14 . . . . 6 1 . . . 15 Projectile 19 | . . . . . 1 . . . . . . . . . . . . . . . . . . . . 6 . 6 . . . . 6 AOE 898 | . 2 . . . 57 . . . 238 10 . . 54 . . 77 43 50 . 17 126 186 11 . . . . 27 . . . . . Terrain Rammed . | . . . . . . . . . . . . . . . . . . . . . . . . . . . . . . . . . . Walls Destroyed . | . . . . . . . . . . . . . . . . . . . . . . . . . . . . . . . . . . Machines Disabled . | . . . . . . . . . . . . . . . . . . . . . . . . . . . . . . . . . . Actions | -11 -10 -10 -10 -9 -8 -8 -7 -7 -7 -7 -7 -7 -6 -6 -6 -6 -6 -6 -6 -5 -5 -5 -5 -5 -5 -5 -4 -4 -4 -4 -4 -3 -3 --------- Run | Scr Mat Min Exi Min Mat Sto Fac Was Fac Low Low Zio Pro Fac Was Fac Low Low Dat Pro Fac Was Fac Upp Upp War Pro Fac Upp Upp Zhi Pro Res Total 58514 | 20 364 686 436 698 1148 855 3989 96 7097 1244 1380 1566 1604 3027 103 2931 1195 1950 117 1434 6475 313 7045 1472 1247 1639 1214 1377 1396 1518 259 1009 1610 Wait 5025 | . . 51 . 11 74 52 442 . 446 30 8 111 10 207 . 193 10 113 . 81 664 43 403 139 . 254 6 66 623 684 16 152 136 Move 49326 | 19 352 598 431 658 957 685 3307 96 5996 1189 1331 1426 1517 2607 98 2620 1108 1746 106 1244 5312 237 5722 1277 1199 1338 1158 1111 697 782 235 789 1378 Hop 180 | . 3 8 . 4 11 12 29 . 31 . . . . 9 . 5 1 3 . 1 24 . 20 . . 1 . 14 . . . . 4 Pick Up 729 | . . . 1 4 20 7 10 . 223 1 . 2 2 44 1 6 2 4 1 6 73 2 303 . . 6 . 4 3 . 1 1 2 Fast Attach 111 | 1 3 . 1 . 2 8 6 . 7 . . 12 . 2 . 1 . 1 2 3 18 1 8 . . 9 . 7 . . 2 12 5 Attach 86 | . . . 1 4 11 3 5 . 6 2 . 1 . 13 1 3 . 3 2 8 7 1 6 . . 1 . 4 . . 1 . 3 Detach 28 | . . . 1 . 1 . 2 . 1 1 1 . . 6 1 1 . . 1 . 2 . 1 . . . . 7 . . . . 2 Swap 91 | . 1 1 . . 5 5 10 . 6 . 2 2 2 6 . 1 1 2 1 1 18 3 9 3 . 2 . . 4 3 2 . 1 Drop 811 | . 3 1 1 . 13 14 18 . 224 2 . 12 3 47 . 7 2 5 3 3 91 3 308 . . 14 . 11 3 . 2 11 10 Fire 256 | . 2 17 . 14 29 2 7 . 9 1 . . 19 . 2 3 26 5 . 9 32 23 10 1 4 3 . 24 2 . . . 12 Melee 1010 | . . . . . 16 40 92 . 94 13 19 . 24 51 . 62 16 33 1 37 119 . 132 31 30 . 27 55 23 29 . 22 44 Ram . | . . . . . . . . . . . . . . . . . . . . . . . . . . . . . . . . . . Kick . | . . . . . . . . . . . . . . . . . . . . . . . . . . . . . . . . . . Crush . | . . . . . . . . . . . . . . . . . . . . . . . . . . . . . . . . . . Escape Stasis 39 | . . . . . . 6 . . . . . . . 18 . . . . . . . . 8 . . . . 7 . . . . . Rewire . | . . . . . . . . . . . . . . . . . . . . . . . . . . . . . . . . . . Trap 6 | . . . . . . . . . . . . . . . . . . . . . . . . . . 3 . . 3 . . . . Miscellaneous 816 | . . 10 . 3 9 21 61 . 54 5 19 . 27 17 . 29 29 35 . 41 115 . 115 21 14 8 23 67 38 20 . 22 13 Route ------- -11/Scrapyard -10/Materials (discovered 3 exits: *Mat / *Min x2) -10/Mines (discovered 3 exits: *Mat x2 / *Exi) -10/Exiles -9/Mines (discovered 2 exits: *Mat x2) -8/Materials (discovered 4 exits: *Fac x3 / *Sto) -8/Storage (discovered 2 exits: *Fac / Rec) -7/Factory (discovered 6 exits: *Fac x4 / *Low x2) -7/Waste -7/Factory (discovered 6 exits: *Fac x4 / *Low x2) -7/Lower Caves -7/Lower Caves (discovered 2 exits: *Fac / *Zio) -7/Zion (discovered 2 exits: Dee / *Pro) -6/Proximity Caves -6/Factory (discovered 6 exits: *Fac x4 / *Low x2) -6/Waste -6/Factory (discovered 6 exits: *Fac x4 / *Low x2) -6/Lower Caves -6/Lower Caves (discovered 2 exits: *Fac / *Dat) -6/Data Miner -5/Proximity Caves -5/Factory (discovered 7 exits: *Fac x3 / *Upp x2 / *Ext x2) -5/Waste -5/Factory (discovered 8 exits: *Fac x4 / *Upp x2 / *Ext x2) -5/Upper Caves -5/Upper Caves (discovered 2 exits: *Fac / *War) -5/Warlord -4/Proximity Caves -4/Factory (discovered 5 exits: *Res x2 / *Upp x2 / Arm) -4/Upper Caves -4/Upper Caves (discovered 2 exits: *Res / *Zhi) -4/Zhirov -3/Proximity Caves -3/Research (discovered 5 exits: *Res x3 / Tes x2) History --------- Turn | Location | Event 3 | -11/Scrapyard | Identified exit to Materials 3 | -11/Scrapyard | Discovered exit to Materials (range 16) 13 | -11/Scrapyard | Entered Materials 33 | -10/Materials | Identified exit to Mines 33 | -10/Materials | Discovered exit to Mines (range 11) 106 | -10/Materials | Discovered exit to Mines (range 10) 115 | -10/Materials | Identified exit to Materials 115 | -10/Materials | Discovered exit to Materials (range 15) 182 | -10/Materials | Entered Mines 184 | -10/Mines | Reached level 2 275 | -10/Mines | Discovered exit to Materials (range 9) 277 | -10/Mines | Received a Mining Laser from a helpful Derelict 315 | -10/Mines | Build established: Hacker-Mutant 473 | -10/Mines | Discovered exit to Materials (range 4) 477 | -10/Mines | Deemed a non-threat by the Exiles lab entrance 477 | -10/Mines | Identified exit to Exiles 477 | -10/Mines | Discovered exit to Exiles (range 5) 525 | -10/Mines | Entered Exiles 525 | -10/Exiles | Accompanied by 1 ally 535 | -10/Exiles | Met 8R-AWN 542 | -10/Exiles | Met EX-HEX 568 | -10/Exiles | Visited The Gauntlet 603 | -10/Exiles | Met EX-DEC 625 | -10/Exiles | Met EX-BIN 629 | -10/Exiles | Aligned with FarCom system 630 | -10/Exiles | Given EX-Vault access code 640 | -10/Exiles | Opened EX-Vault 644 | -10/Exiles | Upgraded with Propulsion slot (x1) 644 | -10/Exiles | Upgraded with Utility slot (x5) 644 | -10/Exiles | Upgraded with Weapon slot (x1) 645 | -10/Exiles | Found Chronowheel 647 | -10/Exiles | Found Army-in-a-Box 659 | -10/Exiles | Warned to stay clear of 0b10 Research branches 697 | -10/Exiles | Identified exit to Mines 697 | -10/Exiles | Discovered exit to Mines (range 15) 702 | -10/Exiles | Left Exiles lab with Chronowheel 702 | -10/Exiles | Entered Mines 704 | -9/Mines | Reached level 3 773 | -9/Mines | Identified exit to Materials 773 | -9/Mines | Discovered exit to Materials (range 16) 914 | -9/Mines | Discovered exit to Materials (range 8) 1005 | -9/Mines | Entered Materials 1005 | -8/Materials | Accompanied by 1 ally 1007 | -8/Materials | Reached level 4 1007 | -8/Materials | Reached level 5 1007 | -8/Materials | Reached level 6 1007 | -8/Materials | Upgraded with Propulsion slot (x1) 1007 | -8/Materials | Upgraded with Weapon slot (x1) 1010 | -8/Materials | Led the pair of lost Derelicts to an unsafe place 1017 | -8/Materials | Identified exit to Storage 1018 | -8/Materials | Build established: Hacker-Scout 1124 | -8/Materials | Reached level 7 1125 | -8/Materials | Upgraded with Propulsion slot (x1) 1232 | -8/Materials | Identified exit to Factory 1232 | -8/Materials | Discovered exit to Factory (range 3) 1353 | -8/Materials | Reached level 8 1452 | -8/Materials | Upgraded with Power slot (x1) 1452 | -8/Materials | Upgraded with Weapon slot (x1) 1551 | -8/Materials | Entered Storage 1551 | -8/Storage | Accompanied by 1 ally 1553 | -8/Storage | Reached level 9 1647 | -8/Storage | Build established: Hacker-Ninja 1723 | -8/Storage | Found Prototype Launcher 1737 | -8/Storage | Identified exit to Recycling 1747 | -8/Storage | Reached level 10 1884 | -8/Storage | Reached level 11 1960 | -8/Storage | Entered Factory 1960 | -7/Factory | Accompanied by 5 allies 1962 | -7/Factory | Reached level 12 1988 | -7/Factory | Upgraded with Utility slot (x1) 2047 | -7/Factory | Build established: Wizard-Ninja 2122 | -7/Factory | Core integrity fell below 50% 2519 | -7/Factory | Identified exit to Lower Caves 2519 | -7/Factory | Identified exit to Factory 2519 | -7/Factory | Identified Scatter Rocket Array 2612 | -7/Factory | Reached level 13 3049 | -7/Factory | Fabricated Cld. VTOL Module? 3051 | -7/Factory | Fabricated Lance? 3079 | -7/Factory | Garrison activated, responded to threat 3080 | -7/Factory | Fabricated Adv. System Shield (x1) 3080 | -7/Factory | Reached level 14 3099 | -7/Factory | Fabricated Cld. VTOL Module? 3114 | -7/Factory | Fabricated Adv. System Shield (x1) 3139 | -7/Factory | Local fabrication network quarantined 3345 | -7/Factory | Build established: Wizard-Scout 3378 | -7/Factory | Reached level 15 3575 | -7/Factory | Garrison activated, responded to threat 3614 | -7/Factory | Adv. System Shield fried by hacking feedback 3632 | -7/Factory | Reached level 16 3642 | -7/Factory | Manually triggered Chute Trap 3642 | -7/Factory | Sucked down chute 3642 | -7/Factory | Entered Waste 3651 | -7/Waste | Spotted C-40 Crusher 3652 | -7/Waste | Spotted C-40 Crusher 3653 | -7/Waste | Spotted C-40 Crusher 3655 | -7/Waste | Spotted C-40 Crusher 3656 | -7/Waste | Spotted C-40 Crusher 3657 | -7/Waste | EMP discharged 3658 | -7/Waste | Spotted C-40 Crusher 3660 | -7/Waste | Identified exit to Factory 3660 | -7/Waste | Discovered exit to Factory (range 14) 3663 | -7/Waste | Entered Factory 3663 | -7/Factory | Upgraded with Utility slot (x2) 4150 | -7/Factory | Reached level 17 4150 | -7/Factory | Upgraded with Utility slot (x1) 4284 | -7/Factory | Destroyed 7 combat bots 4417 | -7/Factory | Destroyed 9 combat bots 4456 | -7/Factory | Build established: Wizard-Ninja 5734 | -7/Factory | Fabricated Cld. Cesium-ion Thruster (x1) 5974 | -7/Factory | Reached level 18 6015 | -7/Factory | Build established: Wizard-Scout 6178 | -7/Factory | Local fabrication network quarantined 6192 | -7/Factory | Fabricated Cld. Cesium-ion Thruster (x1) 6352 | -7/Factory | Entered Lower Caves 6414 | -7/Lower Caves | Identified exit to Lower Caves 6414 | -7/Lower Caves | Discovered exit to Lower Caves (range 9) 6464 | -7/Lower Caves | Learned 4 Factory zone layouts 6523 | -7/Lower Caves | Spotted B-75 Beast 6736 | -7/Lower Caves | Entered another Lower Caves area 6740 | -7/Lower Caves | Encountered a Warlord checkpoint 6756 | -7/Lower Caves | Discovered exit to Factory (range 13) 6827 | -7/Lower Caves | Identified exit to Zion 6827 | -7/Lower Caves | Discovered exit to Zion (range 21) 6833 | -7/Lower Caves | Spotted B-75 Beast 6862 | -7/Lower Caves | Destroyed B-75 Beast 7161 | -7/Lower Caves | Entered Zion 7177 | -7/Zion | Identified exit to Proximity Caves 7177 | -7/Zion | Discovered exit to Proximity Caves (range 13) 7223 | -7/Zion | Given A8's code to call for help 7242 | -7/Zion | Learned location of Warlord (-5) 7265 | -7/Zion | Learned 4 Factory zone layouts 7278 | -7/Zion | Rebuked by Imprinter 7295 | -7/Zion | Found CR-A16's Pointy Stick 7344 | -7/Zion | Received a hallucinogenic algorithm 7381 | -7/Zion | Given the Hacking Drone Bay 7381 | -7/Zion | Found Prototype Device 7381 | -7/Zion | Identified Hacking Drone Bay 7393 | -7/Zion | Found Prototype Hackware 7393 | -7/Zion | Identified Exp. Hacking Suite 7395 | -7/Zion | Found Prototype Processor 7395 | -7/Zion | Identified Exp. Target Analyzer 7403 | -7/Zion | Found Prototype Processor 7403 | -7/Zion | Identified Exp. Melee Analysis Suite 7412 | -7/Zion | Found Prototype Processor 7412 | -7/Zion | Identified Exp. Signal Interpreter 7414 | -7/Zion | Found Prototype Processor 7414 | -7/Zion | Identified Exp. Armor Integrity Analyzer 7530 | -7/Zion | Identified exit to Deep Caves 7530 | -7/Zion | Discovered exit to Deep Caves (range 11) 7673 | -7/Zion | Entered Proximity Caves 7759 | -6/Proximity Caves | Attracted the attention of an 0b10 checkpoint 7844 | -6/Proximity Caves | Reached level 19 7853 | -6/Proximity Caves | Spotted B-75 Beast 7974 | -6/Proximity Caves | Destroyed B-75 Beast 8105 | -6/Proximity Caves | Discovered exit to Factory (range 4) 8208 | -6/Proximity Caves | Entered Factory 8209 | -6/Factory | Identified exit to Factory 8434 | -6/Factory | Identified exit to Lower Caves 8576 | -6/Factory | Spotted B-75 Beast 8737 | -6/Factory | Found Exp. Signal Interpreter 8753 | -6/Factory | Build established: Wizard-Ninja 8973 | -6/Factory | Reached level 20 9188 | -6/Factory | Fabricated Exp. Cesium-ion Thruster (x1) 9232 | -6/Factory | Fabricated Exp. Cesium-ion Thruster (x1) 9278 | -6/Factory | Fabricated Exp. Cesium-ion Thruster (x1) 9321 | -6/Factory | Fabricated Exp. Cesium-ion Thruster (x1) 9325 | -6/Factory | Upgraded with Propulsion slot (x1) 9346 | -6/Factory | Manually triggered Chute Trap 9346 | -6/Factory | Sucked down chute 9346 | -6/Factory | Entered Waste 9353 | -6/Waste | Spotted C-40 Crusher 9354 | -6/Waste | Spotted C-40 Crusher 9356 | -6/Waste | Identified exit to Factory 9356 | -6/Waste | Discovered exit to Factory (range 18) 9356 | -6/Waste | Spotted C-40 Crusher 9356 | -6/Waste | Spotted C-40 Crusher 9356 | -6/Waste | Spotted C-40 Crusher 9361 | -6/Waste | EMP discharged 9368 | -6/Waste | Entered Factory 9557 | -6/Factory | Core integrity fell below 50% 9594 | -6/Factory | Core integrity fell below 20% 9676 | -6/Factory | Destroyed 12 combat bots 9984 | -6/Factory | Reached level 21 10038 | -6/Factory | Fabricated Force Lance (x1) 10057 | -6/Factory | Fabricated Adv. Melee Analysis Suite (x1) 10068 | -6/Factory | First assault squad dispatched 10073 | -6/Factory | Fabricated Adv. Melee Analysis Suite (x1) 10165 | -6/Factory | Entered Lower Caves 10178 | -6/Lower Caves | Encountered a Warlord checkpoint 10206 | -6/Lower Caves | Attracted the attention of an 0b10 checkpoint 10256 | -6/Lower Caves | Identified exit to Lower Caves 10256 | -6/Lower Caves | Discovered exit to Lower Caves (range 14) 10373 | -6/Lower Caves | Attracted the attention of an 0b10 outpost 10420 | -6/Lower Caves | Destroyed 9 combat bots 10479 | -6/Lower Caves | Entered another Lower Caves area 10481 | -6/Lower Caves | Spotted B-75 Beast 10509 | -6/Lower Caves | Destroyed B-75 Beast 10602 | -6/Lower Caves | Identified exit to Data Miner 10602 | -6/Lower Caves | Discovered exit to Data Miner (range 14) 10644 | -6/Lower Caves | Learned Factory garrison access intel 10652 | -6/Lower Caves | Learned Factory terminal intel 10665 | -6/Lower Caves | Found Prototype Device 10769 | -6/Lower Caves | Discovered exit to Factory (range 13) 10805 | -6/Lower Caves | Identified Heart of Steel 11012 | -6/Lower Caves | Entered Data Miner 11012 | -6/Data Miner | Identified exit to Proximity Caves 11012 | -6/Data Miner | Discovered exit to Proximity Caves (range 6) 11015 | -6/Data Miner | Met Data Miner 11018 | -6/Data Miner | Learned location of Section 7 (-2) 11018 | -6/Data Miner | Acquired the access code to Warlord's prototype stash 11021 | -6/Data Miner | Received God Mode back door access code from Data Miner 11022 | -6/Data Miner | Activated Chronowheel 11025 | -6/Data Miner | Destroyed Data Miner 11028 | -6/Data Miner | Reached level 22 11028 | -6/Data Miner | Interfaced with the Data Conduit 11031 | -6/Data Miner | Found Prototype Hackware 11032 | -6/Data Miner | Identified Deep Network Scanner 11034 | -6/Data Miner | Found Prototype Hackware 11034 | -6/Data Miner | Identified System Mapper 11035 | -6/Data Miner | Found Prototype Hackware 11035 | -6/Data Miner | Identified Quantum Router 11041 | -6/Data Miner | Entered Proximity Caves 11050 | -5/Proximity Caves | Upgraded with Propulsion slot (x1) 11105 | -5/Proximity Caves | Attracted the attention of an 0b10 checkpoint 11141 | -5/Proximity Caves | Destroyed 8 combat bots 11247 | -5/Proximity Caves | Destroyed 9 combat bots 11260 | -5/Proximity Caves | Learned Factory stockpile data 11261 | -5/Proximity Caves | Spotted B-75 Beast 11268 | -5/Proximity Caves | Destroyed B-75 Beast 11288 | -5/Proximity Caves | Discovered exit to Factory (range 4) 11289 | -5/Proximity Caves | Attracted the attention of an 0b10 outpost 11320 | -5/Proximity Caves | Build established: Wizard-Scout 11491 | -5/Proximity Caves | Entered Factory 11492 | -5/Factory | Identified exit to Upper Caves 11493 | -5/Factory | Reached level 23 11494 | -5/Factory | Loaded intel: 275 machine locations 11495 | -5/Factory | Loaded intel: 22 terminal locations 11496 | -5/Factory | Loaded intel: 3 garrison access locations 11621 | -5/Factory | Core integrity fell below 50% 11622 | -5/Factory | Discovered exit to Upper Caves (range 17) 11647 | -5/Factory | Quantum Router fried by hacking feedback 11691 | -5/Factory | Build established: Wizard-Ninja 11869 | -5/Factory | Identified exit to Factory 11869 | -5/Factory | Discovered exit to Factory (range 10) 12058 | -5/Factory | Identified exit to Extension 12058 | -5/Factory | Discovered exit to Extension (range 6) 12060 | -5/Factory | Intercept squad dispatched 12070 | -5/Factory | Destroyed Tracker 12108 | -5/Factory | Discovered exit to Factory (range 18) 12285 | -5/Factory | Spotted B-75 Beast 12292 | -5/Factory | Destroyed B-75 Beast 12365 | -5/Factory | Intercept squad dispatched 12393 | -5/Factory | Spotted Tracker 12395 | -5/Factory | Destroyed Tracker 12398 | -5/Factory | Found Prototype Energy Gun 12398 | -5/Factory | Identified Immobilizer 12507 | -5/Factory | Spotted Combat Programmer 12519 | -5/Factory | Destroyed Combat Programmer 12652 | -5/Factory | Reached level 24 12712 | -5/Factory | Intercept squad dispatched 12751 | -5/Factory | Spotted Tracker 12772 | -5/Factory | Spotted Combat Programmer 12775 | -5/Factory | Combat Programmer assimilated allied Administrator 6b 12805 | -5/Factory | Destroyed Combat Programmer 12825 | -5/Factory | Destroyed Tracker 13009 | -5/Factory | Discovered exit to Factory (range 10) 13033 | -5/Factory | Intercept squad dispatched 13073 | -5/Factory | Spotted Tracker 13074 | -5/Factory | Destroyed Tracker 13083 | -5/Factory | Fabricated Adv. System Shield? 13114 | -5/Factory | Fabricated Adv. System Shield? 13144 | -5/Factory | Fabricated Imp. Dynamic Insulation System? 13152 | -5/Factory | Spotted Combat Programmer 13155 | -5/Factory | Destroyed Combat Programmer 13179 | -5/Factory | Fabricated Enh. Force Lance (x1) 13201 | -5/Factory | Fabricated O-16 Technician? 13383 | -5/Factory | Fabricated Mni. Fusion Reactor (x1) 13519 | -5/Factory | Intercept squad dispatched 13530 | -5/Factory | Destroyed Tracker 13530 | -5/Factory | Destroyed Tracker 13566 | -5/Factory | Fabricated Mni. Fusion Reactor? 13577 | -5/Factory | Local fabrication network quarantined 13681 | -5/Factory | Manually triggered Chute Trap 13681 | -5/Factory | Sucked down chute 13681 | -5/Factory | Entered Waste 13695 | -5/Waste | Spotted C-40 Crusher 13698 | -5/Waste | Spotted C-40 Crusher 13698 | -5/Waste | Spotted C-40 Crusher 13698 | -5/Waste | Spotted C-40 Crusher 13698 | -5/Waste | Spotted C-40 Crusher 13699 | -5/Waste | Spotted C-40 Crusher 13699 | -5/Waste | Identified exit to Factory 13699 | -5/Waste | Discovered exit to Factory (range 13) 13701 | -5/Waste | Destroyed C-40 Crusher 13711 | -5/Waste | Found Damper Plating 13711 | -5/Waste | Crushed by Compactor (1 part destroyed, 2 dropped) 13717 | -5/Waste | Destroyed C-40 Crusher 13722 | -5/Waste | Destroyed C-40 Crusher 13727 | -5/Waste | Destroyed C-40 Crusher 13761 | -5/Waste | Warlord forces began an assault 13763 | -5/Waste | Allies destroyed C-40 Crusher 13773 | -5/Waste | Allies destroyed C-40 Crusher 13824 | -5/Waste | Entered Factory 13824 | -5/Factory | Accompanied by 18 allies 13825 | -5/Factory | Loaded intel: 278 machine locations 13897 | -5/Factory | Build established: Wizard-Scout 13930 | -5/Factory | Discovered exit to Upper Caves (range 19) 13993 | -5/Factory | Spotted B-75 Beast 14001 | -5/Factory | Destroyed B-75 Beast 14060 | -5/Factory | Garrison activated, responded to threat 14161 | -5/Factory | Intercept squad dispatched 14178 | -5/Factory | Reached level 25 14179 | -5/Factory | Spotted Tracker 14181 | -5/Factory | Spotted Combat Programmer 14183 | -5/Factory | Garrison activated, responded to threat 14189 | -5/Factory | Destroyed Combat Programmer 14223 | -5/Factory | Destroyed 7 combat bots 14573 | -5/Factory | Intercept squad dispatched 14583 | -5/Factory | Spotted Tracker 14583 | -5/Factory | Destroyed Tracker 14586 | -5/Factory | Found Immobilizer 14832 | -5/Factory | Fabricated Exp. Terrain Scanner (x1) 14836 | -5/Factory | Fabricated Mni. Fusion Reactor (x1) 14863 | -5/Factory | Fabricated Micro-nuke Launcher (x1) 14867 | -5/Factory | Fabricated Imp. Phase Shifter (x1) 14968 | -5/Factory | Intercept squad dispatched 14984 | -5/Factory | Spotted Tracker 14995 | -5/Factory | Destroyed Tracker 15081 | -5/Factory | Spotted Combat Programmer 15106 | -5/Factory | Destroyed Combat Programmer 15373 | -5/Factory | Fabricated Plasma Lance (x1) 15535 | -5/Factory | Intercept squad dispatched 15555 | -5/Factory | Spotted Tracker 15556 | -5/Factory | Spotted Tracker 15563 | -5/Factory | Destroyed Tracker 15568 | -5/Factory | Destroyed Tracker 15572 | -5/Factory | Found Exp. Phase Shifter 15621 | -5/Factory | Spotted Combat Programmer 15625 | -5/Factory | Spotted Combat Programmer 15636 | -5/Factory | Destroyed Combat Programmer 15642 | -5/Factory | Core integrity fell below 20% 15652 | -5/Factory | Destroyed Combat Programmer 15957 | -5/Factory | Intercept squad dispatched 15967 | -5/Factory | Spotted Tracker 15968 | -5/Factory | Spotted Tracker 15973 | -5/Factory | Destroyed Tracker 15984 | -5/Factory | Destroyed Tracker 15989 | -5/Factory | Found Immobilizer 16065 | -5/Factory | Spotted Combat Programmer 16067 | -5/Factory | Spotted Combat Programmer 16079 | -5/Factory | Destroyed Combat Programmer 16089 | -5/Factory | Fabricated Exp. System Shield (x1) 16089 | -5/Factory | Destroyed Combat Programmer 16132 | -5/Factory | Local fabrication network quarantined 16204 | -5/Factory | Entered Upper Caves 16204 | -5/Upper Caves | Accompanied by 2 allies 16248 | -5/Upper Caves | Encountered a Warlord checkpoint 16371 | -5/Upper Caves | Identified exit to Upper Caves 16371 | -5/Upper Caves | Discovered exit to Upper Caves (range 7) 16469 | -5/Upper Caves | Attracted the attention of an 0b10 checkpoint 16502 | -5/Upper Caves | Destroyed 7 combat bots 16653 | -5/Upper Caves | Entered another Upper Caves area 16653 | -5/Upper Caves | Accompanied by 2 allies 16683 | -5/Upper Caves | Attracted the attention of an 0b10 outpost 16744 | -5/Upper Caves | Destroyed 12 combat bots 16746 | -5/Upper Caves | Encountered a Warlord checkpoint 16754 | -5/Upper Caves | Identified exit to Warlord 16754 | -5/Upper Caves | Discovered exit to Warlord (range 9) 16810 | -5/Upper Caves | Learned Factory garrison access intel 16811 | -5/Upper Caves | Learned Factory machine intel 16842 | -5/Upper Caves | Discovered exit to Factory (range 19) 16868 | -5/Upper Caves | P-70 Sage assimilated allied 9L-U0N(r) 16939 | -5/Upper Caves | Entered Warlord 16952 | -5/Warlord | Identified exit to Proximity Caves 16952 | -5/Warlord | Discovered exit to Proximity Caves (range 8) 16972 | -5/Warlord | Learned Research trap positions 16972 | -5/Warlord | Learned Research emergency access door positions 16972 | -5/Warlord | Learned 4 Access zone layouts 16972 | -5/Warlord | Learned Armory fabricator intel 16972 | -5/Warlord | Learned Armory repair station intel 16972 | -5/Warlord | Learned Research fabricator intel 16972 | -5/Warlord | Learned Research garrison access intel 16995 | -5/Warlord | Found Signal Generator 16997 | -5/Warlord | Found Signal Generator 17008 | -5/Warlord | Met Warlord 17013 | -5/Warlord | Opened Warlord's prototype stash 17033 | -5/Warlord | Warlord's base attacked by MAIN.C 17045 | -5/Warlord | Found Prototype Device 17045 | -5/Warlord | Identified Minesniffer Drone Bay 17107 | -5/Warlord | Found Prototype Energy Gun 17107 | -5/Warlord | Identified Vortex Rail 17383 | -5/Warlord | Warlord forces counterattacked 17383 | -5/Warlord | Spotted Striker 17398 | -5/Warlord | Opened side exit 17400 | -5/Warlord | Spotted Striker 17410 | -5/Warlord | Entered Proximity Caves 17412 | -4/Proximity Caves | Reached level 26 17413 | -4/Proximity Caves | Learned Research emergency access door positions 17488 | -4/Proximity Caves | Attracted the attention of an 0b10 checkpoint 17511 | -4/Proximity Caves | Discovered exit to Factory (range 19) 17560 | -4/Proximity Caves | Spotted B-86 Titan 17572 | -4/Proximity Caves | Destroyed B-86 Titan 17667 | -4/Proximity Caves | Entered Factory 17668 | -4/Factory | Loaded intel: 288 machine locations 17669 | -4/Factory | Loaded intel: 3 garrison access locations 17713 | -4/Factory | Spotted B-86 Titan 17718 | -4/Factory | Identified exit to Upper Caves 17718 | -4/Factory | Identified exit to Armory 17727 | -4/Factory | Garrison activated, responded to threat 17752 | -4/Factory | Fabricated Exp. Cesium-ion Thruster (x1) 17762 | -4/Factory | Local fabrication network quarantined 17795 | -4/Factory | Fabricated Exp. Cesium-ion Thruster (x1) 17800 | -4/Factory | Intercept squad dispatched 17816 | -4/Factory | Spotted Tracker 17816 | -4/Factory | Spotted Tracker 17832 | -4/Factory | Destroyed Tracker 17847 | -4/Factory | Core integrity fell below 50% 17854 | -4/Factory | Destroyed Tracker 17883 | -4/Factory | Spotted Combat Programmer 17893 | -4/Factory | Spotted Combat Programmer 17909 | -4/Factory | Reached level 27 17909 | -4/Factory | Destroyed Combat Programmer 17912 | -4/Factory | Found Prototype Special Weapon 17912 | -4/Factory | Identified Exp. Remote Datajack 17917 | -4/Factory | Found Exp. Target Analyzer 17995 | -4/Factory | Identified exit to Research 17995 | -4/Factory | Discovered exit to Research (range 19) 18011 | -4/Factory | Destroyed Combat Programmer 18029 | -4/Factory | Discovered exit to Research (range 12) 18069 | -4/Factory | Destroyed B-86 Titan 18161 | -4/Factory | Entered Upper Caves 18382 | -4/Upper Caves | Identified exit to Upper Caves 18382 | -4/Upper Caves | Discovered exit to Upper Caves (range 86) 18453 | -4/Upper Caves | A Commander dispatched an escort 18455 | -4/Upper Caves | Learned Research trap positions 18455 | -4/Upper Caves | Learned 8 Factory zone layouts 18465 | -4/Upper Caves | Attracted the attention of an 0b10 checkpoint 18653 | -4/Upper Caves | Attracted the attention of an 0b10 outpost 18707 | -4/Upper Caves | Destroyed 7 combat bots 18965 | -4/Upper Caves | Entered another Upper Caves area 18965 | -4/Upper Caves | Accompanied by 4 allies 18966 | -4/Upper Caves | Commander's escort returned to base 18966 | -4/Upper Caves | Commander's escort returned to base 19005 | -4/Upper Caves | Discovered exit to Research (range 35) 19158 | -4/Upper Caves | Attracted the attention of an 0b10 checkpoint 19350 | -4/Upper Caves | Learned location of 1 exit from Proximity Caves 19357 | -4/Upper Caves | Destroyed 11 combat bots 19399 | -4/Upper Caves | Identified exit to Zhirov 19399 | -4/Upper Caves | Discovered exit to Zhirov (range 44) 19825 | -4/Upper Caves | Entered Zhirov 19825 | -4/Zhirov | Identified exit to Proximity Caves 19825 | -4/Zhirov | Discovered exit to Proximity Caves (range 3) 19827 | -4/Zhirov | Met Zhirov 19832 | -4/Zhirov | Zhirov requested help retrieving the SGEMP Prototype 19838 | -4/Zhirov | Found Alien Artifact 19838 | -4/Zhirov | Identified Integrated Dissipator 19838 | -4/Zhirov | Installed Integrated Dissipator, increased core heat dissipation (+20) 19864 | -4/Zhirov | Found Alien Artifact 19867 | -4/Zhirov | Upgraded with Power slot (x1) 19874 | -4/Zhirov | Entered Proximity Caves 19876 | -3/Proximity Caves | Reached level 28 19876 | -3/Proximity Caves | Upgraded with Propulsion slot (x1) 19961 | -3/Proximity Caves | Attracted the attention of an 0b10 checkpoint 19972 | -3/Proximity Caves | Spotted B-86 Titan 19979 | -3/Proximity Caves | Destroyed B-86 Titan 20208 | -3/Proximity Caves | Entered Research 20209 | -3/Research | Loaded intel: 65 trap records 20211 | -3/Research | Loaded intel: 108 machine locations 20212 | -3/Research | Loaded intel: 4 fabricator locations 20213 | -3/Research | Loaded intel: 3 garrison access locations 20219 | -3/Research | Identified Transdimensional Reconstructor 20322 | -3/Research | Identified exit to Testing 20431 | -3/Research | Identified exit to Research 20431 | -3/Research | Discovered exit to Research (range 21) 20431 | -3/Research | Intercept squad dispatched 20446 | -3/Research | Spotted Tracker 20449 | -3/Research | Destroyed Tracker 20482 | -3/Research | Reached level 29 20521 | -3/Research | Spotted Combat Programmer 20526 | -3/Research | Destroyed Combat Programmer 20547 | -3/Research | Destroyed 7 combat bots 20577 | -3/Research | Intercept squad dispatched 20592 | -3/Research | Spotted Tracker 20592 | -3/Research | Spotted Tracker 20605 | -3/Research | Destroyed Tracker 20628 | -3/Research | Spotted Combat Programmer 20631 | -3/Research | Core integrity fell below 50% 20634 | -3/Research | Spotted Combat Programmer 20648 | -3/Research | Core integrity fell below 20% 20650 | -3/Research | Heart of Steel transformed into Warbot 20654 | -3/Research | Destroyed by Combat Programmer with EMDS Last Messages --------------- 20645_ Acquired Exp. Terrain Scanner. 20646_ G-67 Veteran destroyed. 20647_ Dropped Adv. Dynamic Insulation System. 20647_ Dropped Exp. Terrain Scanner. 20649_ Imp. System Restoration Module purges 1% of system corruption (1%). 20650_ Imp. System Restoration Module purges 1% of system corruption (0%). Heart of Steel transforms into Warbot, brandishing Battle Rifles and Mak. Shrapnel Guns: "WARLORD FOREVER!" 20650_ Vortex penetrates Wall. 20650_ Vortex penetrates Combat Programmer. 20650_ Vortex penetrates Wall. 20651_ Combat Programmer resets S-43 Plague, system corruption cleaned. 20651_ G-67 Veteran destroyed. 20652_ Acquired Adv. Dynamic Insulation System. 20652_ Penetrated by EMDS Slug. 20653_ Combat Programmer fails to hack Warbot. 20653_ U-05 Engineer builds a Wall. 20653_ Vortex penetrates Combat Programmer. 20653_ Vortex penetrates Wall. 20654_ Penetrated by EMDS Slug. Map ----- +----------------------------------------------------+ | ?""???? ####""?? ? ?? ?? ???? ?## ?? | | """???# ?####G ? ? ? # ? #?# ? ?# | | "T????? ?####""? ?""""" ######?####???#?? # | | """? #? ?? #??#""? """"" ####? #? ??? | | ?""? # ?####"" ?""""" ###?# ? ? # ?? | | ??? ?####???#### ? ? ####? ? ? ?+ ?# | | ? ? ?########## ? ? ?? #####??? """ #? ?## | | ??######?###?####?################ ? """ # ?? # | | ?#?##?##################??###???## ? """? # # | | #####?##?#?#?###?#########??###?## ? ? ? ? # | | #?##################?#?######?#?## ? ? ?# #? | | ####?#???####??##?########??####?#?###+##### ?? | | #?##?####???##?#?############?######## #??## + | | ###?##?######?#####?#?#####?#?? #?#?### ? # | | ###?###?#?#?#######?###?###### # ??### ? | | ##########??####?###?##?###?## + ?#? | | ?###?##########??#?########### #+#?####+###? | | ###???#?###?#?###?####?######; ? ! # | | #######?##?#####?###########;;######?# ? ?? | | #?##?#######?############?#![! ##?### """ """ | | ######?########?#####?##?##![% ##?##? """ """ | | ####?### ######?######[[! ##?### """ """ | | ?####### ############;%! ###### ? | | ######## ### s sp[ #?###? ? | | #??#?### + s %;p ###### ? ?? | | ######## ###"""" %M@# ###### ? | | ?#?###?# ###"""" = !# ! ###### | | ########## #####"""" # ###?####?#/####### | | ###??##### #####"""" # ########## # | | ########## ##### ] # ########?# # | | ## #?#?# # !##?####### # """ | | ## #########+######+############# # """ | | # ##### t s # """ | | + " p h# | | # "T k + | | # ##### p w # """ | | !! ######?####+########+"######### h #! """ | | !! #### ? ? # ## # """ | | #######?##?# # ? ## # | | ?#?########? # ## # | | #??#??###### # ? ## ###+### | | ????######?# # ## ### ### | | ??#?####?### # ## ### ### | | ?#?????###?# #############?# ### ### | | ???#???##### ###### ? # ###%### | | ??###??#?### ###### # A###+### | | ?##?#?###### #?#### ? # # | | ?????#?#??## ###### ? # # =[ | | ????######?# ###### # # =[ | | ?#?????###?####"""Y"""######## ?+ # ![ | +----------------------------------------------------+ Best States ------------- Heat Dissipation 123 Energy Generation 85 Energy Capacity 330 Matter Stores 300 Matter Capacity 300 Sight Range 24 Terrain Scan Range 30 Terrain Scan Density 310 Jamming Range 14 EM Shielding 4 Resistance: KI 35 Resistance: TH 35 Resistance: EX 35 Resistance: EM 35 Resistance: I 35 Resistance: S 35 Resistance: P 35 Phase Shifting 20 Evasion (%) 98 Targeting Accuracy 8 Melee Accuracy 38 Target Analysis 12 Armor Integrity Analysis 90 Overload Regulation 40 Salvage Targeting 2 Offensive Hacking 75 Defensive Hacking 50 Item Schematics ----------------- Hvy. Ion Engine | -8/Materials | Scanalyzed Pulse Rifle | -8/Materials | Extracted Hvy. EM Shotgun | -8/Materials | Extracted Med. Armor Plating | -8/Materials | Extracted Lgt. Ion Engine | -8/Materials | Extracted Shock Rifle | -8/Materials | Extracted Adv. Targeting Computer | -8/Materials | Extracted Tractor Beam | -8/Materials | Extracted Shotgun | -8/Materials | Extracted Imp. Datajack | -8/Materials | Scanalyzed Maneuvering Thrusters | -8/Materials | Extracted Lgt. Nuclear Core | -8/Storage | Hacked Imp. Proton Missile Launcher | -8/Storage | Hacked Hvy. Laser | -8/Storage | Hacked Lgt. Angular Momentum Engine | -7/Factory | Hacked Gauss Rifle | -7/Factory | Hacked Cld. Aerolev Unit | -7/Factory | Hacked Xenon Bombardment Thruster | -7/Factory | Hacked Imp. Component Analysis Suite | -7/Factory | Hacked Adv. Terrain Scanner | -7/Factory | Hacked Imp. Hacking Suite | -7/Factory | Hacked Cld. Ion Engine | -7/Factory | Hacked Mic. Nuclear Core | -7/Factory | Hacked Melee Analysis Suite | -7/Factory | Hacked Core Analyzer | -7/Factory | Hacked Spear | -7/Factory | Hacked Lgt. Armor Plating | -7/Factory | Hacked Hvy. Phase Cannon | -7/Factory | Hacked Imp. Core Analyzer | -7/Factory | Hacked Adv. Melee Analysis Suite | -7/Factory | Hacked Imp. Maneuvering Thrusters | -7/Factory | Hacked Matter Compressor | -7/Factory | Hacked Imp. Thermal Shield | -7/Factory | Hacked Cld. VTOL Module | -7/Factory | Hacked Hvy. Pick | -7/Factory | Hacked Imp. System Shield | -7/Factory | Hacked Imp. System Backup Module | -7/Factory | Hacked Recalibrator | -7/Factory | Hacked Reactive Plating | -7/Factory | Hacked Reflective Plating | -7/Factory | Hacked Insulated Plating | -7/Factory | Hacked Lance | -7/Factory | Hacked Adv. Hacking Suite | -7/Factory | Hacked Adv. System Shield | -7/Factory | Hacked Cloaking Device | -7/Factory | Hacked Hvy. Ion Cannon | -7/Factory | Hacked Enh. Optical Array | -7/Factory | Hacked Power Maul | -7/Factory | Hacked Imp. Target Analyzer | -7/Factory | Hacked Imp. Coolant Injector | -7/Factory | Hacked Cld. Deuterium Engine | -7/Factory | Hacked Cld. Particle Cannon | -7/Factory | Hacked Prc. Shock Rifle | -7/Factory | Hacked Prc. Assault Rifle | -7/Factory | Hacked Prc. Beam Rifle | -7/Factory | Hacked Imp. Flight Unit | -7/Factory | Scanalyzed Imp. Melee Analysis Suite | -7/Factory | Scanalyzed Transmission Jammer | -7/Factory | Scanalyzed Shock Absorption System | -7/Factory | Scanalyzed Lgt. Fission Core | -7/Factory | Hacked Great Axe | -7/Factory | Hacked Matter Filter | -7/Factory | Hacked Mni. Drone Bay | -7/Factory | Hacked Cld. Cesium-ion Thruster | -7/Factory | Hacked Recoil Nullifier | -7/Factory | Hacked Cld. Pulse Rifle | -7/Factory | Hacked Force Field | -7/Factory | Hacked Cld. Airjet | -7/Factory | Hacked Prc. Grenade Launcher | -7/Factory | Hacked Adv. Sensor Array | -7/Factory | Hacked Com. Battery | -7/Factory | Extracted Hvy. Deuterium Engine | -7/Factory | Extracted Arc Projector | -7/Factory | Hacked Focal Shield | -7/Factory | Hacked Lrn. Sensor Array | -7/Factory | Hacked Lrn. Terrain Scanner | -7/Factory | Hacked Dynamic Insulation System | -7/Factory | Scanalyzed Imp. Propulsion Shielding | -7/Factory | Extracted Imp. EM Pulse Cannon | -7/Factory | Extracted Com. Matter Pod | -7/Factory | Extracted Chainsword | -7/Factory | Extracted Imp. Shield Generator | -7/Factory | Extracted Imp. Deuterium Engine | -7/Factory | Extracted Hpw. Shotgun | -7/Factory | Extracted Adv. Cooling System | -7/Factory | Hacked Med. Reactive Plating | -7/Factory | Hacked Weight Redist. System | -7/Factory | Extracted Particle Charger | -7/Factory | Extracted System Backup Module | -7/Factory | Extracted Hrd. Heavy Armor Plating | -7/Factory | Extracted Mni. Assault Cannon | -7/Factory | Extracted Coolant Injector | -7/Factory | Extracted Recoil Stabilizer | -7/Factory | Extracted Arm. Huge Wheel | -7/Factory | Extracted Greatsword | -7/Factory | Extracted Kinecellerator | -7/Factory | Extracted Imp. Terrain Scan Processor | -7/Factory | Extracted Imp. Medium Armor Plating | -7/Factory | Hacked Remote Shield | -7/Factory | Hacked Imp. Particle Charger | -7/Factory | Hacked Mak. Transmission Jammer | -6/Factory | Scanalyzed Remote Datajack | -6/Factory | Scanalyzed EM Shield | -6/Factory | Scanalyzed Fusion Compressor | -6/Factory | Hacked Launcher Loader | -6/Factory | Hacked System Shield | -6/Factory | Scanalyzed Exp. Terrain Scanner | -6/Factory | Hacked Imp. Plasma Cutter | -6/Factory | Hacked Ion Burst Cannon | -6/Factory | Extracted Imp. Sensor Array | -6/Factory | Extracted Imp. Heat Shielding | -6/Factory | Extracted Energy Well | -6/Factory | Extracted Imp. Remote Shield | -6/Factory | Hacked Arm. Medium Treads | -6/Factory | Hacked Adv. Reclamation Unit | -6/Factory | Hacked Imp. Recalibrator | -6/Factory | Hacked Mic. Fission Core | -6/Factory | Hacked Hvy. Machine Gun | -6/Factory | Hacked Exp. Cesium-ion Thruster | -6/Factory | Hacked Lrn. Proton Cannon | -6/Factory | Hacked Imp. Gyrokinetic Inverter | -6/Factory | Hacked Impulse Thruster | -6/Factory | Hacked Hcp. Matter Pod | -6/Factory | Extracted Phase Cannon | -6/Factory | Extracted Myomer Leg | -6/Factory | Hacked Hvy. Flak Cannon | -6/Factory | Hacked Phase Shifter | -6/Factory | Hacked Variable Charge Gun | -6/Factory | Hacked Nuclear Pulse Array | -6/Factory | Hacked Hvy. Treads | -6/Factory | Hacked Cmb. Gravmag System | -6/Factory | Hacked Rnf. Fission Core | -6/Factory | Hacked Nanoactuators | -6/Factory | Hacked Lightning Gun | -6/Factory | Extracted Hvy. Missile Launcher | -6/Factory | Extracted Triangulator | -6/Factory | Extracted Imp. Gravmag System | -6/Factory | Extracted Force Rifle | -6/Factory | Extracted Weapon Cycler | -6/Factory | Extracted Hpw. Shock Rifle | -6/Factory | Extracted Imp. Heavy Laser | -6/Factory | Extracted Force Lance | -6/Factory | Hacked Imp. Thermal Converter | -6/Factory | Extracted Imp. Remote Datajack | -6/Factory | Hacked Micro-nuke Launcher | -6/Factory | Hacked Adv. Medium Treads | -6/Factory | Hacked Imp. Armor Integrity Analyzer | -6/Factory | Hacked Kinetic Spear | -6/Data Miner | Free Plasma Sword | -6/Data Miner | Free Exp. Flexi-carbon Leg | -6/Data Miner | Free Lgt. Regenerative Plating | -6/Data Miner | Free Combat Drone Bay | -6/Data Miner | Free Disruptor Cannon | -5/Factory | Hacked Hyp. Coil Gun | -5/Factory | Hacked Enh. Force Lance | -5/Factory | Hacked Adv. Transmission Jammer | -5/Factory | Hacked Hvy. Shock Bomb Launcher | -5/Factory | Scanalyzed Exp. Power Amplifier | -5/Factory | Hacked Adv. Salvage Targeting Computer | -5/Factory | Extracted Antimissile System | -5/Factory | Hacked Adv. Coolant Injector | -5/Factory | Hacked Nova Cannon | -5/Factory | Hacked Stasis Beam | -5/Factory | Hacked Plasma Rifle | -5/Factory | Extracted Imp. Integration Mediator | -5/Factory | Extracted Imp. Light Armor Plating | -5/Factory | Extracted Cmb. Airjet | -5/Factory | Extracted Energy Filter | -5/Factory | Extracted Gauss Cannon | -5/Factory | Extracted System Guard | -5/Factory | Extracted Neutron Cannon | -5/Factory | Hacked Lrn. Missile Launcher | -5/Factory | Extracted Tesla Bomb Launcher | -5/Factory | Extracted Thermal Converter | -5/Factory | Extracted Imp. Weapon Cycler | -5/Factory | Extracted Cld. Plasma Cannon | -5/Factory | Extracted Tesla Rifle | -5/Factory | Extracted Adv. Weight Redist. System | -5/Factory | Extracted Centrium Wheel | -5/Factory | Hacked Adv. Trap Extractor | -5/Factory | Extracted Adv. Hardlight Generator | -5/Factory | Hacked Field Propulsion Drive | -5/Factory | Hacked Imp. Dynamic Insulation System | -5/Factory | Hacked Adv. Plasma Rifle | -5/Factory | Hacked Cld. Nuclear Pulse Thruster | -5/Factory | Hacked Adv. Focal Shield | -5/Factory | Hacked Adv. Thermal Shield | -5/Factory | Hacked Mni. Fusion Reactor | -5/Factory | Hacked Q-thruster | -5/Factory | Scanalyzed Imp. Focal Shield | -5/Factory | Extracted Imp. Targeting Computer | -5/Factory | Extracted Biometal Medium Treads | -5/Factory | Hacked Gatling Laser | -5/Factory | Extracted Antigrav System | -5/Factory | Hacked Overload Amplifier | -5/Factory | Hacked Particle Reactor | -5/Factory | Hacked Arm. Leg | -5/Factory | Extracted Imp. Launcher Guidance Computer | -5/Factory | Extracted Lrn. Tractor Beam | -5/Factory | Extracted Lyr. Heavy Armor Plating | -5/Factory | Extracted Plasma Cutter | -5/Factory | Extracted Imp. Kinecellerator | -5/Factory | Extracted Falx | -5/Factory | Extracted Linear Gravjet | -5/Factory | Extracted Enh. Flexi-carbon Leg | -5/Factory | Extracted Imp. Phase Shifter | -5/Factory | Hacked Exp. Heat Sink | -5/Factory | Hacked Exp. Optical Array | -5/Factory | Hacked Exp. Power Shielding | -5/Factory | Hacked Exp. Propulsion Shielding | -5/Factory | Hacked Exp. Sensor Array | -5/Factory | Hacked Reaction Control System | -5/Factory | Hacked Lgt. Antimatter Reactor | -5/Factory | Hacked Imp. Reclamation Unit | -5/Factory | Hacked Cld. Fission Core | -5/Factory | Hacked Cld. Gravmag System | -5/Factory | Hacked Cld. Plasma Rifle | -5/Factory | Hacked Exp. Signal Interpreter | -5/Factory | Hacked Exp. Utility Shielding | -5/Factory | Hacked Hardcell Cannon | -5/Factory | Hacked Point Defense Array | -5/Factory | Hacked Hvy. Gauss Cannon | -5/Factory | Hacked Exp. Targeting Computer | -5/Factory | Hacked Exp. Terrain Scan Processor | -5/Factory | Hacked Exp. Weapon Shielding | -5/Factory | Hacked Lyr. Light Armor Plating | -5/Factory | Hacked Plasma Lance | -5/Factory | Hacked Exp. System Shield | -5/Factory | Hacked Exp. Hacking Suite | -5/Factory | Hacked Exp. Melee Analysis Suite | -5/Factory | Hacked Impulse Thruster Array | -5/Factory | Hacked Neutron Missile Launcher | -5/Factory | Hacked System Restoration Module | -5/Factory | Hacked Exp. Phase Shifter | -4/Factory | Scanalyzed Imp. Diametric Drive | -4/Factory | Scanalyzed Imp. System Restoration Module | -4/Factory | Scanalyzed Exp. Thermal Shield | -4/Factory | Hacked Exp. Focal Shield | -4/Factory | Hacked Adv. Particle Charger | -4/Factory | Hacked Adv. Recalibrator | -4/Factory | Hacked Enh. Quantum Rifle | -4/Factory | Hacked Adv. Reaction Control System | -4/Factory | Hacked Corruption Screen | -4/Factory | Hacked Lgt. Quantum Reactor | -4/Factory | Hacked Imp. Stasis Canceller | -4/Factory | Hacked Cmb. Linear Gravjet | -4/Factory | Hacked Imp. Arc Thrower | -4/Zhirov | Free Assault Drone Bay | -4/Zhirov | Free Biometal Heavy Treads | -3/Research | Hacked Adv. Heavy Treads | -3/Research | Hacked Adv. Dynamic Insulation System | -3/Research | Scanalyzed Stasis Projector | -3/Research | Hacked Adv. Launcher Guidance Computer | -3/Research | Hacked Centrium Leg | -3/Research | Hacked Quantum Reactor | -3/Research | Hacked Cld. Impulse Thruster | -3/Research | Hacked Cld. Field Propulsion Drive | -3/Research | Hacked Adv. Micro-nuke Launcher | -3/Research | Hacked Arm. Heavy Treads | -3/Research | Extracted Matter Neutralizer | -3/Research | Extracted Hyp. Mass Driver | -3/Research | Extracted Com. Wheel | -3/Research | Extracted Hvy. Neutron Cannon | -3/Research | Extracted Microactuators | -3/Research | Extracted Hvy. Antimatter Reactor | -3/Research | Extracted Robot Schematics ------------------ O-24 Administrator | -7/Factory | Hacked O-16 Technician | -7/Factory | Hacked L-41 Fighter | -7/Factory | Hacked K-01 Serf | -6/Factory | Hacked A-15 Conveyor | -6/Factory | Hacked R-10 Processor | -6/Factory | Hacked B-48 Gladiator | -6/Factory | Hacked S-27 Virus | -6/Data Miner | Free G-50 Soldier | -6/Data Miner | Free X-72 Disruptor | -6/Data Miner | Free H-66 Slayer | -6/Data Miner | Free P-70 Sage | -6/Data Miner | Free I-36 Angel | -6/Data Miner | Free I-47 Archangel | -6/Data Miner | Free R-06 Scavenger | -5/Factory | Hacked A-02 Transporter | -5/Factory | Hacked X-62 Marksman | -5/Factory | Hacked M-36 Artificer | -4/Factory | Hacked Y-64 Sentinel | -4/Factory | Hacked L-61 Swordsman | -3/Research | Hacked Fabricated ------------ Cld. VTOL Module | x1 | -7/Factory Lance | x2 | -7/Factory Adv. System Shield | x1 | -7/Factory Cld. VTOL Module | x1 | -7/Factory Adv. System Shield | x1 | -7/Factory Cld. Cesium-ion Thruster | x1 | -7/Factory Cld. Cesium-ion Thruster | x1 | -7/Factory Exp. Cesium-ion Thruster | x1 | -6/Factory Exp. Cesium-ion Thruster | x1 | -6/Factory Exp. Cesium-ion Thruster | x1 | -6/Factory Exp. Cesium-ion Thruster | x1 | -6/Factory Force Lance | x1 | -6/Factory Adv. Melee Analysis Suite | x1 | -6/Factory Adv. Melee Analysis Suite | x1 | -6/Factory Adv. System Shield | x1 | -5/Factory Adv. System Shield | x1 | -5/Factory Imp. Dynamic Insulation System | x2 | -5/Factory Enh. Force Lance | x1 | -5/Factory O-16 Technician | x1 | -5/Factory Mni. Fusion Reactor | x1 | -5/Factory Mni. Fusion Reactor | x1 | -5/Factory Exp. Terrain Scanner | x1 | -5/Factory Mni. Fusion Reactor | x1 | -5/Factory Micro-nuke Launcher | x1 | -5/Factory Imp. Phase Shifter | x1 | -5/Factory Plasma Lance | x1 | -5/Factory Exp. System Shield | x1 | -5/Factory Exp. Cesium-ion Thruster | x1 | -4/Factory Exp. Cesium-ion Thruster | x1 | -4/Factory Alien Tech Used ----------------- Integrated Dissipator Achievements -------------- Assassin Gladiator Guerrilla Style Speed Demon The Science Guy What Is This Thing? Challenges ------------ None RPGLIKE | -11 -10 -10 -10 -9 -8 -8 -7 -7 -7 -7 -7 -7 -6 -6 -6 -6 -6 -6 -6 -5 -5 -5 -5 -5 -5 -5 -4 -4 -4 -4 -4 -3 -3 --------- Run | Scr Mat Min Exi Min Mat Sto Fac Was Fac Low Low Zio Pro Fac Was Fac Low Low Dat Pro Fac Was Fac Upp Upp War Pro Fac Upp Upp Zhi Pro Res Levels Raised 28 | . . 1 . 1 5 3 5 . 2 . . . 1 1 . 1 . . 1 . 2 . 1 . . . 1 1 . . . 1 1 XP Earned 48372 | 6000 1190 1017 350 1628 7058 4301 7058 67 2875 253 206 105 1216 1476 46 1326 526 441 372 1416 2192 34 1584 244 320 126 662 1215 297 392 105 970 1304 XP Spent 47105 | . . . 7450 1540 7510 2910 2000 . 8540 . . 1550 1500 1400 . . . . . 2750 3250 . 1540 . . . 1535 . . . 800 2130 700 Upgrades 66 | . . . 12 4 13 5 1 . 8 . . 2 1 1 . . . . . 2 4 . 3 . . . 6 . . . 1 2 1 Power Slot 2 | . . . . . 1 . . . . . . . . . . . . . . . . . . . . . . . . . 1 . . Propulsion Slot 6 | . . . 1 . 2 . . . . . . . . 1 . . . . . 1 . . . . . . . . . . . 1 . Utility Slot 9 | . . . 5 . . . 1 . 3 . . . . . . . . . . . . . . . . . . . . . . . . Weapon Slot 3 | . . . 1 . 2 . . . . . . . . . . . . . . . . . . . . . . . . . . . . Heat Dissipation 13 | . . . 1 . 2 1 . . 4 . . . . . . . . . . . . . 2 . . . 3 . . . . . . Energy Generation 4 | . . . . 1 1 1 . . . . . . . . . . . . . 1 . . . . . . . . . . . . . Energy Storage 2 | . . . . . . . . . . . . . . . . . . . . . 1 . . . . . 1 . . . . . . Mass Support 3 | . . . 1 . 1 1 . . . . . . . . . . . . . . . . . . . . . . . . . . . Inventory Capacity 7 | . . . 2 1 1 . . . . . . 1 1 . . . . . . . 1 . . . . . . . . . . . . Sight Range 4 | . . . . . . . . . 1 . . 1 . . . . . . . . 1 . . . . . . . . . . . 1 Terrain Scan Density 3 | . . . 1 1 . . . . . . . . . . . . . . . . . . . . . . . . . . . 1 . Ranged Accuracy 2 | . . . . 1 1 . . . . . . . . . . . . . . . . . . . . . . . . . . . . Melee Accuracy 2 | . . . . . . . . . . . . . . . . . . . . . . . . . . . 2 . . . . . . Hack Attack % 2 | . . . . . 1 1 . . . . . . . . . . . . . . . . . . . . . . . . . . . Hack Defense % 4 | . . . . . 1 1 . . . . . . . . . . . . . . 1 . 1 . . . . . . . . . . Protomatter Created 10457 | . 6 23 . 90 136 99 580 . 1019 48 141 . 192 393 . 271 389 407 . 830 1426 199 1330 346 392 . 331 497 491 276 . 352 193 Integrity Restored 16453 | . . 210 . 49 152 295 1252 . 1006 96 369 . 563 265 . 669 555 731 . 848 2379 . 2429 409 262 . 517 1475 776 408 . 461 277 Core 13155 | . . 210 . 29 120 286 1061 . 741 96 270 . 456 189 . 669 346 555 . 801 1773 . 1985 238 203 . 462 1352 407 316 . 366 224 Parts 3298 | . . . . 20 32 9 191 . 265 . 99 . 107 76 . . 209 176 . 47 606 . 444 171 59 . 55 123 369 92 . 95 53 Protomatter Decayed 6099 | . . . . 83 177 . 457 . 950 16 11 . . 297 . 80 51 81 . 538 537 . 1201 276 389 308 155 25 227 162 . 40 38 Game ------ Seed HugeCoolingInverter Manual? 0 Play Time 15:17:53 Cumulative 137.1 hours Start 2021.05.29 @ 07:14:49 End 2021.05.30 @ 13:55:36 Sessions 3 Manual Loads 0 Difficulty Explorer Special Mode Winter2019/RPGLIKE Game No. 29 Rogue 12 Adventurer 0 Explorer 17 Win Type - Total 1 Types 0/0/1/0/0/0/0/0/0 Lore% 65 Gallery% 73 Achievement% 60 Wizard Run 0 Options --------- ASCII 0 Keyboard 0 Movement Mouse Keybinds 0 Fullscreen 2 Font 24/Proggy Map View 76x50 Tactical HUD 1 Map Filters NONE Filters NONE Steam 1 RUN: a530796a-f9d6-4a08-a2cb-828910ae3697